Cogmind - Beta 11 X6 @@@ ROGUE MODE // 2021.07.18 @ 14:22:13 Player: Boris Result: Escaped! Performance ------------- Evolutions (9) 4500 Regions Visited (32) 6400 Robots Destroyed (455) 2275 Value Destroyed (21883) 21883 Prototype IDs (85) 1700 Alien Tech Used (0) 0 Bonus (9039) 9039 TOTAL SCORE: 45797 Bonus ------- High Alert Combat Kills 3779 Follower Combat Kills 2786 Entered Garrisons 1400 Used RIF Installer 3500 Aligned with FarCom 300 Win 3000 Friendly Fire -5726 Cogmind --------- Core Integrity 597/1600 Matter 300/300 Energy 1125/1600 System Corruption 19% Temperature Cool (2) Movement Flying (20) Location To Epsilon Eridani Parts ------- > --- POWER (2) -------- (None) > --- PROPULSION (8) --- Experimental Q-thruster > --- UTILITY (12) ----- Superbattery Enhanced Optical Array Relay Coupler [Heavy] (18) > --- WEAPON (3) ------- (None) > --- INVENTORY (5) ---- Quantum Reactor Stasis Beam Peak State ------------ > --- POWER ------------ Quantum Reactor Light Quantum Reactor > --- PROPULSION ------- Experimental Cesium-ion Thruster Impulse Thruster Impulse Thruster Impulse Thruster Field Propulsion Array Field Propulsion Array > --- UTILITY ---------- Experimental Coolant Injector Enhanced Optical Array Advanced Terrain Scanner Advanced Terrain Scan Processor Improved Targeting Computer Advanced Target Analyzer Improved Stasis Canceller Hacking Suite Hacking Suite Improved System Shield Relay Coupler [Heavy] Relay Coupler [Behemoth] > --- WEAPON ----------- Heavy Machine Gun Mini Smartbomb Launcher Stasis Beam > --- INVENTORY -------- Light Particle Reactor Impulse Thruster Superbattery Enhanced Nova Cannon Heavy Gauss Cannon [Rating: 162] Favorites ----------- Power Cooled Ion Engine Engine Cooled Ion Engine Power Core Enhanced Nuclear Core Reactor Cold Fusion Reactor Propulsion Armored Treads Treads Armored Treads Leg Flexi-carbon Leg Wheel Armored Wheel Hover Unit Linear Gravjet Flight Unit Impulse Thruster Utility Huge Storage Unit Device Advanced Cooling System Storage Huge Storage Unit Processor Improved Targeting Computer Hackware Advanced Hacking Suite Protection Active Cooling Armor Weapon Plasma Cannon Energy Gun High-powered Electrolaser Energy Cannon Plasma Cannon Ballistic Gun Autogun Ballistic Cannon Heavy Gauss Cannon Launcher Smartbomb Launcher Special Weapon Remote Datajack Slashing Weapon Chainsword Piercing Weapon Spear Special Melee Weapon Datajack Build | -11 -10 -10 -9 -9 -9 -8 -8 -8 -8 -8 -7 -7 -7 -7 -6 -6 -5 -5 -5 -5 -5 -5 -4 -4 -4 -4 -3 -3 -3 -2 -1 -1 ------- Run | Scr Mat Min Mat Min Exi Min Mat Gar Mat Gar Fac Gar Fac Gar Fac Gar Fac Was Fac Gar Fac Gar Fac Was Fac Ext Res Arm Lab Res Acc Com Slots Evolved 18 | . . . 2 . . . 2 . . . 2 . . . 2 . 2 . . . . . 2 . . . 2 . . 2 2 . Power 1 | . . . . . . . . . . . . . . . . . 1 . . . . . . . . . . . . . . . Propulsion 6 | . . . 1 . . . . . . . 1 . . . 1 . . . . . . . . . . . 1 . . 1 1 . Utility 10 | . . . 1 . . . 1 . . . 1 . . . 1 . 1 . . . . . 2 . . . 1 . . 1 1 . Weapon 1 | . . . . . . . 1 . . . . . . . . . . . . . . . . . . . . . . . . . Parts Attached 588 | 7 5 . 23 15 1 16 37 22 9 19 41 19 18 32 22 36 64 2 4 11 11 9 9 . 12 47 10 29 . 15 32 11 Power 33 | 1 1 . 1 1 . 1 . 1 . . 1 1 1 1 1 1 6 . . . 1 . . . . 5 . 2 . 2 3 2 Engine 10 | 1 . . 1 1 . 1 . 1 . . 1 1 . . . . 2 . . . 1 . . . . . . . . . . . Core 10 | . 1 . . . . . . . . . . . 1 1 1 1 2 . . . . . . . . 3 . . . . . . Reactor 13 | . . . . . . . . . . . . . . . . . 2 . . . . . . . . 2 . 2 . 2 3 2 Propulsion 120 | 2 2 . 9 1 . 2 8 2 . . 6 2 1 7 2 5 14 1 2 . 4 . . . 2 14 6 10 . 5 7 6 Treads 29 | 1 2 . 3 . . . 6 2 . . 6 2 1 1 . . 3 . . . . . . . 1 . . 1 . . . . Leg 26 | . . . . . . . . . . . . . . . . . 1 . . . . . . . . 14 5 6 . . . . Wheel 31 | 1 . . 6 1 . 2 2 . . . . . . 6 2 5 6 . . . . . . . . . . . . . . . Hover 12 | . . . . . . . . . . . . . . . . . 4 1 2 . 4 . . . 1 . . . . . . . Flight 22 | . . . . . . . . . . . . . . . . . . . . . . . . . . . 1 3 . 5 7 6 Utility 152 | 2 2 . 4 3 . 1 5 5 1 4 6 4 2 3 5 13 23 1 1 4 3 4 3 . 7 14 3 8 . 4 15 2 Device 43 | 1 1 . 1 1 . . . . . . . 1 . . 1 5 6 . . . 1 2 2 . 1 5 . 3 . 2 9 1 Storage 12 | 1 1 . 1 . . . . . . . 1 . . . 1 1 . . . . . . . . 1 2 . 1 . 1 . 1 Processor 17 | . . . 2 . . . 2 . . . . . . . 1 . 3 1 . . . . . . 2 1 . 2 . 1 2 . Hackware 52 | . . . . . . . . 4 1 2 2 2 2 3 1 4 9 . 1 4 1 2 1 . 3 2 2 2 . . 4 . Protection 28 | . . . . 2 . 1 3 1 . 2 3 1 . . 1 3 5 . . . 1 . . . . 4 1 . . . . . Artifact . | . . . . . . . . . . . . . . . . . . . . . . . . . . . . . . . . . Weapon 283 | 2 . . 9 10 1 12 24 14 8 15 28 12 14 21 14 17 21 . 1 7 3 5 6 . 3 14 1 9 . 4 7 1 Energy Gun 29 | . . . . 1 . 2 7 4 3 . 1 . 1 4 2 1 2 . . . . . . . 1 . . . . . . . Energy Cannon 47 | . . . . 1 . . . . . . 10 4 2 6 4 2 4 . . 2 1 2 . . 1 2 . 1 . 4 . 1 Ballistic Gun 52 | 2 . . 1 2 . 5 9 2 4 6 7 2 . . 1 4 3 . . . . . . . . 2 . 1 . . 1 . Ballistic Cannon 30 | . . . 5 3 . . 1 . . . . . . . . . 3 . . . . . 2 . . 8 . 5 . . 3 . Launcher 52 | . . . 3 2 . 5 5 3 . 2 5 1 1 4 4 2 3 . 1 3 1 1 2 . . . . 2 . . 2 . Special Weapon 39 | . . . . . . . . . . . 4 3 7 5 1 6 6 . . 2 1 2 . . 1 . . . . . 1 . Impact Weapon . | . . . . . . . . . . . . . . . . . . . . . . . . . . . . . . . . . Slashing Weapon 19 | . . . . . . . 2 2 . 4 1 2 3 . . . . . . . . . 2 . . 2 1 . . . . . Piercing Weapon 6 | . . . . . . . . . . . . . . 2 2 2 . . . . . . . . . . . . . . . . Special Melee Weapon 9 | . . . . 1 1 . . 3 1 3 . . . . . . . . . . . . . . . . . . . . . . Unidentified Prototypes 27 | . . . . . . . 4 . 2 . 3 1 1 . 1 . 2 1 . . . . 1 . 3 3 1 2 . 1 . 1 Corrupted Parts 6 | . . . . . . . . . . . . . . . . 1 . . . . . . 2 . . 1 . . . . . 2 System Corruption 27 | . . . . . . . . . . . . . . . . 6 . . . . . . 7 . . 5 . . . . . 9 Parts Lost 134 | . . . 2 4 . 4 7 5 . 1 3 2 1 2 5 3 17 . . 2 . . 8 . 3 5 16 7 . 6 8 23 Power 16 | . . . . 1 . 1 . 1 . . . 1 . . 1 . 1 . . . . . 2 . . 2 1 2 . . 1 2 Propulsion 51 | . . . 1 1 . 2 3 . . . 2 . 1 1 2 1 6 . . . . . 3 . 3 1 6 2 . 3 3 10 Utility 42 | . . . . 1 . 1 1 1 . . . . . . 2 . 6 . . 2 . . 3 . . 2 6 3 . 2 4 8 Weapon 25 | . . . 1 1 . . 3 3 . 1 1 1 . 1 . 2 4 . . . . . . . . . 3 . . 1 . 3 Highest Loss Streak 17 | . . . 1 1 . 2 3 3 . 1 1 2 1 1 3 2 10 . . 1 . . 5 . 2 3 14 4 . 5 3 17 Average Slot Usage (%) 88 | . 100 100 96 96 100 97 98 97 99 99 90 83 83 80 77 94 87 92 93 88 92 91 66 31 44 86 90 54 . 37 71 53 Engine 4 | . 11 . 5 10 11 9 9 7 9 9 6 6 3 . . . 2 . . . 3 5 2 . . . . . . . . . Core 2 | . 2 14 5 . . . . . . . . . 3 7 6 5 5 . . . . . . . . 4 3 . . . . . Reactor 1 | . . . . . . . . . . . . . . . . . 1 11 11 11 7 5 4 . . 3 3 4 . 2 6 . Treads 15 | . 26 28 3 . . . 12 27 27 27 29 29 29 18 . . 1 . . . . . . . 4 . . 3 . . . . Leg 1 | . . . . . . . . . . . . . . . . . . . . . . . . . . 19 24 12 . . . . Wheel 6 | . 1 . 28 33 33 32 13 . . . . . . 8 24 28 17 . . . . . . . . . . . . . . . Hover 2 | . . . . . . . . . . . . . . . . . 3 27 28 29 28 29 17 5 . . . . . . . . Device 3 | . 14 14 15 11 11 11 . . . . . . . . . 3 4 5 5 3 3 2 7 5 3 5 8 5 . 4 13 11 Storage 6 | . 14 14 11 11 11 11 9 9 9 9 7 7 7 7 6 6 3 . . . . . . . . . 3 1 . . . 1 Processor 6 | . . . 5 2 . . 17 18 18 18 10 . . . . 6 5 7 8 5 . . . . 5 3 . 3 . 6 11 10 Hackware 9 | . . . . . . . . 4 1 4 5 6 7 6 9 14 18 26 25 25 31 31 24 21 28 32 22 9 . 8 11 7 Protection 4 | . . . . 5 11 10 8 3 7 4 5 6 7 7 6 6 3 . . . 4 5 3 . . 2 6 . . . . . Energy Gun 1 | . . . . 1 1 1 4 3 9 2 . . . 3 10 7 . . . . . . . . . . . . . . . . Energy Cannon 4 | . . . . 2 . . . . . . 7 13 16 12 4 1 2 5 5 4 3 2 . . . . . . . 1 . 1 Ballistic Gun 7 | . 28 28 5 8 11 18 20 15 15 16 13 2 . . . 6 3 . . . . . . . . 2 . . . . 1 . Ballistic Cannon 1 | . . . 15 7 . . . . . . . . . . . . 1 . . . . . 2 . . 10 12 8 . . 2 . Special Weapon 1 | . . . . . . . . . . . . 2 3 1 1 1 1 5 3 . 1 2 . . . . . . . . . . Slashing Weapon 1 | . . . . . . . . 4 1 4 . 2 1 . . . . . . . . . . . . . . . . . . . Naked Turns . | . . . . . . . . . . . . . . . . . . . . . . . . . . . . . . . . . Heaviest Build 143 | 15 30 30 97 100 97 99 107 107 100 110 143 143 143 143 135 124 141 39 45 45 50 50 55 1 4 90 97 71 3 27 56 49 Greatest Support 133 | 10 40 40 63 40 40 38 62 62 60 60 80 80 80 80 68 60 60 40 61 61 61 57 57 3 12 105 133 103 14 52 56 50 Greatest Overweight (x) 41 | 1 1 . 3 4 2 4 5 1 1 1 1 2 2 10 2 8 41 . . . 1 . . . 1 4 2 1 . 1 . . Average Overweight (x) . | . . . 1 2 2 2 3 1 1 1 1 1 1 1 1 1 1 . . . . . . . . . . . . . . . Largest Inventory Capacity 25 | 8 15 15 25 25 25 25 25 25 25 25 25 25 25 25 25 25 25 5 5 5 5 5 5 5 5 15 15 5 5 5 5 5 Average Capacity 20 | 7 13 15 24 25 25 25 25 25 25 25 25 25 25 25 25 25 20 5 5 5 5 5 5 5 5 6 14 5 5 5 5 5 Most Carried 25 | 5 15 15 25 25 25 25 25 25 25 25 25 25 25 25 25 25 25 5 5 5 5 5 5 5 5 15 15 5 5 5 5 5 Average Carried 19 | 3 12 15 21 23 24 24 24 24 24 24 24 24 24 24 23 24 20 4 4 4 4 5 4 5 4 5 13 4 5 4 4 4 Final Capacity 25 | 8 15 15 25 25 25 25 25 25 25 25 25 25 25 25 25 25 5 5 5 5 5 5 5 5 5 15 5 5 5 5 5 5 Final Carried 25 | 5 15 15 24 25 25 24 25 24 25 25 25 25 25 25 24 25 5 5 5 5 5 5 5 5 4 15 5 5 5 4 5 2 Class Distribution -------------------- 29% | Bothacker-Mutant 21% | Mutant 10% | Botlord-Mutant 8% | Hacker-Mutant 8% | Bothacker-Skirmisher 6% | Scavenger-Skirmisher 3% | Wizard-Skirmisher Dominant Class ---------------- Mutant | -10/Materials Mutant | -10/Mines Mutant | -9/Materials Mutant | -9/Mines Mutant | -9/Exiles Scavenger-Mutant | -8/Mines Scavenger-Skirmisher | -8/Materials Mutant | -8/Garrison Scavenger-Skirmisher | -8/Materials Bothacker-Mutant | -8/Garrison Bothacker-Skirmisher | -7/Factory Bothacker-Mutant | -7/Garrison Bothacker-Mutant | -7/Factory Botlord-Mutant | -7/Garrison Botlord-Mutant | -6/Factory Botlord-Mutant | -6/Garrison Botlord-Mutant | -5/Factory Hacker-Mutant | -5/Waste Hacker-Mutant | -5/Factory Hacker-Mutant | -5/Garrison Hacker-Mutant | -5/Factory Hacker-Mutant | -5/Garrison Hacker-Mutant | -4/Factory Hacker-Mutant | -4/Waste Hacker-Mutant | -4/Factory Wizard-Skirmisher | -4/Extension Wizard-Skirmisher | -3/Research Scavenger-Skirmisher | -3/Armory Scavenger-Skirmisher | -3/Lab Hacker-Mutant | -2/Research Hacker-Scout | -1/Access Scout | -1/Command Resources | -11 -10 -10 -9 -9 -9 -8 -8 -8 -8 -8 -7 -7 -7 -7 -6 -6 -5 -5 -5 -5 -5 -5 -4 -4 -4 -4 -3 -3 -3 -2 -1 -1 ----------- Run | Scr Mat Min Mat Min Exi Min Mat Gar Mat Gar Fac Gar Fac Gar Fac Gar Fac Was Fac Gar Fac Gar Fac Was Fac Ext Res Arm Lab Res Acc Com Matter Collected 14157 | 322 462 42 687 363 . 275 1105 489 93 375 926 382 508 553 602 617 1056 61 165 391 303 442 421 . 130 1166 463 624 . 307 466 361 Remotely . | . . . . . . . . . . . . . . . . . . . . . . . . . . . . . . . . . Salvage Created 18880 | 124 512 21 819 315 . 507 1455 1303 344 415 1613 711 337 1583 1842 1131 1151 . 567 492 245 306 599 . 116 900 535 348 . 307 253 29 Parts 830 | 5 25 6 56 39 . 37 83 57 17 28 78 41 15 53 54 41 41 . 22 10 13 9 23 . 1 38 12 12 . 5 9 . Haulers Intercepted 14 | . . . 4 . . . 3 . 1 . 2 . . . . . . . . . 1 . 2 . 1 . . . . . . . Recyclers Shooed 9 | . . . . 2 . . . . 1 . . . . . 2 . 1 . . . . . 2 . . . 1 . . . . . Parts Field Recycled . | . . . . . . . . . . . . . . . . . . . . . . . . . . . . . . . . . Retrieved Matter . | . . . . . . . . . . . . . . . . . . . . . . . . . . . . . . . . . Parts Self-Destructed . | . . . . . . . . . . . . . . . . . . . . . . . . . . . . . . . . . Prevented . | . . . . . . . . . . . . . . . . . . . . . . . . . . . . . . . . . Kills | -11 -10 -10 -9 -9 -9 -8 -8 -8 -8 -8 -7 -7 -7 -7 -6 -6 -5 -5 -5 -5 -5 -5 -4 -4 -4 -4 -3 -3 -3 -2 -1 -1 ------- Run | Scr Mat Min Mat Min Exi Min Mat Gar Mat Gar Fac Gar Fac Gar Fac Gar Fac Was Fac Gar Fac Gar Fac Was Fac Ext Res Arm Lab Res Acc Com Combat Hostiles Destroyed 365 | . 9 1 23 13 . 19 24 25 4 11 33 22 7 19 25 15 13 . 14 20 6 14 5 . . 9 12 13 . 1 7 1 Melee 12 | . . . . . . . . 2 . 2 . 3 . 1 . . 1 . . . . . . . . . 3 . . . . . Guns 78 | . 9 1 1 3 . 4 20 4 4 8 8 1 1 1 4 6 1 . . . . . . . . 1 . 1 . . . . Cannons 98 | . . . 18 5 . . . . . . 12 6 6 9 2 . 3 . . 1 1 1 2 . . 8 9 12 . 1 1 1 AOE 141 | . . . 4 5 . 15 2 12 . 1 11 10 . 7 10 5 6 . 11 17 4 12 3 . . . . . . . 6 . Classes Destroyed 19 | 2 2 3 4 . . 2 2 . . . 2 . . . 1 1 . . . . . . . . . . . . . . . . Worker 12 | . . 1 1 . . 1 1 . . . . . . . 1 . 3 . . . 1 . 2 . . . . . . . 1 . Builder 14 | . . . 1 3 . 1 . . . . 3 . . . 2 . 1 . . . . . 1 . . 2 . . . . . . Tunneler 5 | 1 . . . 1 . 1 . . . . 1 . . . . . 1 . . . . . . . . . . . . . . . Hauler 14 | . . . 4 . . . 3 . 1 . 2 . . . . . . . . . 1 . 2 . 1 . . . . . . . Recycler 19 | 1 1 . 1 1 . . . . 2 . . . 1 . 4 . 2 . . . . . 2 . . 2 . . . 1 1 . Mechanic 2 | . . . . . . . 1 . . . 1 . . . . . . . . . . . . . . . . . . . . . Operator 6 | . . 1 1 . . . . . . . . . . . . . 1 . 1 . 1 . . . . 1 . . . . . . Watcher 10 | . 2 . 2 . . . . . . . . . 1 1 . . . . 1 . . . 1 . . 1 . . . 1 . . Swarmer 101 | . . 1 9 8 . 9 . 6 . 4 . 14 5 4 . 3 . . 8 8 4 3 . . . . 3 5 . . 6 1 Saboteur 1 | . . . . . . . . . . . . . . . 1 . . . . . . . . . . . . . . . . . Grunt 176 | . 9 . 9 3 . 7 13 16 1 7 20 5 1 8 20 5 8 . 3 10 1 10 1 . . 6 8 4 . . 1 . Brawler 13 | . . . 1 . . 1 . . . . 2 . . 1 . 4 . . 1 1 . 1 . . . . . 1 . . . . Duelist 11 | . . . . . . 1 . 2 . . 2 4 . . 1 . . . . . . . 1 . . . . . . . . . Protector 2 | . . . . . . . . . . . 2 . . . . . . . . . . . . . . . . . . . . . Sentry 33 | . . . 4 2 . . 8 2 3 . 2 1 . 4 1 . 1 . . . 1 . . . . 2 1 . . 1 . . Hunter 11 | . . . . . . 1 2 . . . 2 . 1 1 . 2 1 . . . . . . . . 1 . . . . . . Programmer 16 | . . . . . . . . . . . 3 . 1 2 1 . 2 . 2 . . . 3 . . . . 2 . . . . Heavy 3 | . . . . . . . 1 . . . . . . . 1 . 1 . . . . . . . . . . . . . . . Behemoth 3 | . . . . . . . . . . . . . . . . 1 . . . 1 . . . . . . . 1 . . . . Thug 1 | . . . . . . . . . . . . . . . . . . . . . . . . . . 1 . . . . . . Savage 1 | . . . . . . . . . . . . . . . . . . . . . . . . . . 1 . . . . . . Best Kill Streak 15 | 2 6 2 9 9 . 7 4 9 2 3 12 7 2 4 15 5 5 . 8 13 6 6 7 . 1 4 3 3 . 2 7 1 Combat Bots Only 13 | . 5 1 7 7 . 4 4 9 2 3 9 7 2 4 13 5 4 . 8 13 3 6 2 . . 4 3 3 . 1 6 1 Max Kills in Single Turn 4 | 1 1 1 4 3 . 3 1 2 2 1 3 3 1 2 3 2 2 . 4 4 3 2 2 . 1 2 2 1 . 1 3 1 Gunslinging 1 | . . . . . . . . . . . . . . . 1 . . . . . . . . . . . . . . . . . Exploded 4 | . . . 1 1 . 3 1 2 . 1 3 3 . 2 3 2 2 . 4 4 2 2 1 . . . . . . . 3 . Melee 1 | . . . . . . . . 1 . 1 . 1 . 1 . . 1 . . . . . . . . . 1 . . . . . Uniques/NPCs Destroyed 1 | . . . . . . . . . . . . . . . . . . . . . . . . . . 1 . . . . . . A7 (-4/Extension) Combat | -11 -10 -10 -9 -9 -9 -8 -8 -8 -8 -8 -7 -7 -7 -7 -6 -6 -5 -5 -5 -5 -5 -5 -4 -4 -4 -4 -3 -3 -3 -2 -1 -1 -------- Run | Scr Mat Min Mat Min Exi Min Mat Gar Mat Gar Fac Gar Fac Gar Fac Gar Fac Was Fac Gar Fac Gar Fac Was Fac Ext Res Arm Lab Res Acc Com Damage Taken 27314 | . 349 101 550 562 . 631 1666 938 233 594 1482 1763 691 815 1442 781 2490 . 322 224 31 175 1158 . 1031 1129 2777 1964 . 603 788 2024 Core 4645 | . 48 9 120 54 . 111 272 128 . 24 91 136 14 76 152 109 584 . . . . 29 236 . 646 81 390 185 . 147 136 867 Absorbed by Shields 756 | . . . . . . . . . . . . 19 . 33 . 59 . . . 54 . 10 . . . . . 382 . . . 199 Reduced by Siege Mode 170 | . . . . . . . . . . . . . . . . . . . . . . . . . . . . 170 . . . . Core Remaining (%) 53 | 100 . 77 . . . 28 . . . 22 . . . 54 . 69 . . . . . 38 . . . 16 . . 55 89 . 37 Volleys Fired 1288 | 12 42 7 62 36 . 36 83 54 9 25 98 141 46 78 63 67 112 . 17 36 19 35 52 . 5 55 23 35 . 12 24 4 Largest 3 | 2 2 2 2 2 . 2 3 3 3 3 3 3 3 3 3 3 3 . 1 1 1 1 1 . 1 3 3 3 . 1 1 1 Hottest 240 | 40 40 40 78 107 . 45 102 133 103 103 240 240 230 230 220 210 234 . 81 81 81 81 61 . 81 183 183 159 . 81 80 120 Shots Fired 2063 | 24 84 14 115 54 . 46 225 70 27 56 206 175 61 101 107 89 145 . 17 36 19 35 52 . 5 108 64 88 . 12 24 4 Gun 736 | 24 84 14 13 17 . 29 210 33 27 52 85 5 2 3 54 31 24 . . . . . . . . 24 . 5 . . . . Cannon 927 | . . . 95 30 . . 5 . . . 91 151 32 51 18 12 92 . 7 14 6 13 50 . 4 84 64 83 . 12 11 2 Launcher 244 | . . . 7 7 . 17 10 37 . 4 18 9 1 17 25 12 12 . 10 17 5 20 2 . . . . . . . 12 2 Special 156 | . . . . . . . . . . . 12 10 26 30 10 34 17 . . 5 8 2 . . 1 . . . . . 1 . Kinetic 1028 | 24 84 14 108 39 . 20 188 18 18 45 85 5 . . . 10 50 . . . . . 50 . . 108 64 87 . . 11 . Thermal 540 | . . . . 2 . . 27 15 9 7 91 151 29 75 70 30 32 . . . . . . . . . . . . . . 2 Explosive 132 | . . . 7 7 . 17 . . . . 12 9 1 5 12 . 7 . . 14 5 20 2 . . . . . . . 12 2 Electromagnetic 246 | . . . . 6 . 9 10 37 . 4 6 . 5 15 15 24 45 . 17 17 6 13 . . 4 . . 1 . 12 . . Robot Hit Streak 58 | 4 15 3 7 12 . 13 20 8 18 20 18 9 10 19 21 9 10 . 8 6 8 5 5 . 10 11 5 58 . 9 9 3 Robot Miss Streak 10 | 4 3 4 5 7 . 3 4 4 1 4 6 2 4 3 5 4 4 . . 2 1 3 5 . . 3 4 10 . 2 1 . Penetration Max 1 | . . . . . . . . . . . . . . . . 1 1 . . . . . . . . 1 1 . . . . . Secondary Targets 8 | . . . . . . . 2 . . 1 1 . . . 1 3 . . . . . . . . . . . . . . . . Max Gunslinging Chain 1 | . . . . . . . 1 . . 1 1 . . . 1 1 . . . . . . . . . . . . . . . . Shots Hit Robots 1270 | 12 61 6 63 31 3 27 153 42 20 38 132 55 34 96 67 62 88 . 5 11 13 9 27 . 5 70 43 77 . 10 9 1 Core Hits 857 | 3 24 3 42 30 . 35 63 37 9 18 77 36 11 43 57 33 39 . 20 39 18 29 36 . 4 31 21 72 . 6 18 3 Critical Kills 7 | . 1 . . . . . . . . . 1 1 . . 2 . 2 . . . . . . . . . . . . . . . Critical Parts Destroyed 3 | 1 1 . . . . . . . . . 1 . . . . . . . . . . . . . . . . . . . . . Critical Strikes 61 | 1 2 . 5 . . . . 1 . . 2 2 1 3 4 1 3 . . . . . 9 . . 10 13 2 . . 2 . Burn 3 | . . . . . . . . . . . . . 1 . 2 . . . . . . . . . . . . . . . . . Meltdown 4 | . . . . . . . . . . . 1 1 . . 2 . . . . . . . . . . . . . . . . . Destroy 6 | 1 2 . . . . . . . . . 1 . . . . . 2 . . . . . . . . . . . . . . . Blast 41 | . . . 5 . . . . . . . . . . . . . 1 . . . . . 9 . . 9 13 2 . . 2 . Sever 7 | . . . . . . . . 1 . . . 1 . 3 . 1 . . . . . . . . . 1 . . . . . . Melee Attacks 181 | . . . . 2 3 . 9 23 2 29 8 16 8 25 5 10 10 . . . . . . . . 15 16 . . . . . Impact . | . . . . . . . . . . . . . . . . . . . . . . . . . . . . . . . . . Slashing 114 | . . . . . . . 9 17 1 24 8 16 8 . . . . . . . . . . . . 15 16 . . . . . Piercing 50 | . . . . . . . . . . . . . . 25 5 10 10 . . . . . . . . . . . . . . . Sneak Attacks 29 | . . . . 2 3 . . 3 . 2 . . 1 4 . . 1 . . . . . . . . 13 . . . . . . Combat Hostiles 7 | . . . . . . . . 1 . 2 . . . 4 . . . . . . . . . . . . . . . . . . Follow-up Attacks . | . . . . . . . . . . . . . . . . . . . . . . . . . . . . . . . . . Damage Inflicted 53895 | 156 813 97 1818 1151 . 1608 2582 2643 435 787 4128 2132 562 3860 4568 2305 3448 . 1548 2541 1209 2574 2890 . 171 3181 1901 2203 . 405 1995 184 Guns 8164 | 156 803 95 79 161 . 295 2189 237 409 474 1015 35 58 61 933 469 427 . . . . . . . . 170 . 98 . . . . Cannons 15418 | . . . 1223 318 . . 62 . . . 1322 765 390 970 330 238 1961 . 188 207 166 259 1176 . 144 1607 1260 2081 . 405 301 45 Explosions 24216 | . . . 516 672 . 1313 314 1816 . 64 1758 979 . 1037 3279 899 850 . 1360 2334 1043 2315 1697 . . . 137 . . . 1694 139 Melee 5284 | . . . . . . . . 582 . 249 . 353 114 1396 26 567 130 . . . . . . . . 1363 504 . . . . . Ramming 217 | . 10 2 . . . . 17 8 26 . 33 . . . . . 12 . . . . . 17 . 27 41 . 24 . . . . Kinetic 14737 | 156 803 95 1302 355 . 124 2002 145 287 388 1015 35 . . . 198 1139 . . . . . 1176 . . 1777 1260 2179 . . 301 . Thermal 8610 | . . . . 21 . 193 249 303 122 86 1322 765 336 1354 1892 649 435 . 52 . . . 786 . . . . . . . . 45 Explosive 16192 | . . . 516 672 . 1120 . . . . 1600 979 . 512 1395 . 357 . 678 2234 1043 2315 801 . . . 137 . . . 1694 139 Electromagnetic 8855 | . . . . 103 . 171 314 1605 . 64 158 . 112 598 1255 891 1375 . 818 307 166 259 110 . 144 . . . . 405 . . Impact . | . . . . . . . . . . . . . . . . . . . . . . . . . . . . . . . . . Slashing 3165 | . . . . . . . . 582 . 249 . 353 114 . . . . . . . . . . . . 1363 504 . . . . . Piercing 2119 | . . . . . . . . . . . . . . 1396 26 567 130 . . . . . . . . . . . . . . . Highest Corruption 26 | . 2 2 . . . . . 1 1 1 1 1 1 3 1 7 . . 1 4 4 4 9 19 21 26 5 13 13 1 1 19 Average Corruption 3 | . 2 2 . . . . . 1 1 1 1 1 1 2 1 1 . . 1 3 4 4 4 15 20 24 5 7 13 1 1 4 Corruption Purged . | . . . . . . . . . . . . . . . . . . . . . . . . . . . . . . . . . Effects 259 | . 10 7 . . . . . 6 3 5 4 12 9 31 1 2 . . . 16 14 11 8 2 17 60 8 30 . . . 3 Message Errors 81 | . 6 1 . . . . . 5 . 2 1 4 4 11 . . . . . 6 2 4 2 1 4 19 1 8 . . . . Matter Fused 50 | . . . . . . . . . . . . . . 11 . . . . . 5 4 4 1 1 2 15 . 7 . . . . Heat Flow Errors 29 | . 1 2 . . . . . . . . . . . 3 . . . . . 3 2 1 1 . 3 6 2 4 . . . 1 Energy Discharges 38 | . 1 3 . . . . . 1 3 2 1 5 1 2 . 1 . . . . 3 . 1 . 3 4 2 4 . . . 1 Parts Rejected 2 | . . . . . . . . . . . . . . . . . . . . . . . . . . 2 . . . . . . Data Loss (minor) 39 | . 2 1 . . . . . . . 1 1 3 4 4 1 1 . . . 2 3 2 3 . 1 4 2 4 . . . . Data Loss (major) 9 | . . . . . . . . . . . . . . . . . . . . . . . . . 3 3 . 3 . . . . Alerts 2 | . . . . . . . . . . . . . . . . . . . . . . . . . . 2 . . . . . . Misdirections 4 | . . . . . . . . . . . . . . . . . . . . . . . . . 1 2 . . . . . 1 Weapon Failures 5 | . . . . . . . . . . . 1 . . . . . . . . . . . . . . 3 1 . . . . . Overload Shots . | . . . . . . . . . . . . . . . . . . . . . . . . . . . . . . . . . Overflow Damage 1860 | . . . 39 38 . . . 113 . . 33 79 10 111 96 71 180 . 76 8 102 106 352 . 11 192 94 . . 12 137 . Projectiles 449 | . . . 29 . . . . . . . 10 15 10 . . . 119 . 48 7 . 29 80 . 11 53 . . . 12 26 . Explosions 1008 | . . . 10 38 . . . 40 . . 23 37 . 38 92 2 61 . 28 1 102 77 272 . . . 76 . . . 111 . Melee 403 | . . . . . . . . 73 . . . 27 . 73 4 69 . . . . . . . . . 139 18 . . . . . Knockbacks 68 | . . . 6 3 . . . . . . . . . . . . . . . . . . 12 . . 8 7 28 . . 4 . Impact . | . . . . . . . . . . . . . . . . . . . . . . . . . . . . . . . . . Kinetic 67 | . . . 5 3 . . . . . . . . . . . . . . . . . . 12 . . 8 7 28 . . 4 . Secondary 1 | . . . 1 . . . . . . . . . . . . . . . . . . . . . . . . . . . . . Self-Inflicted Damage 538 | . . . . . . 135 8 49 . 31 . . . 28 75 . 106 . 47 . . 15 8 . 12 . . 24 . . . . Shots 21 | . . . . . . 5 1 3 . 2 . . . 1 4 . 1 . 3 . . 1 . . . . . . . . . . Rammed 23 | . 4 . . . . . 3 . 2 1 4 . . . . . 1 . . . . . 2 . 6 . . . . . . . Targets Rammed 30 | . 4 1 . . . . 3 1 3 1 6 . . . . . 1 . . . . . 2 . 6 2 . . . . . . Kicked 2 | . . . . . . . . . . . . . . . . . . . . . . . . . . 2 . . . . . . Crushed 5 | . . 1 . . . . . 1 1 . 2 . . . . . . . . . . . . . . . . . . . . . Highest Temperature 576 | . 106 193 51 18 . 51 253 118 117 272 54 11 . 135 576 408 439 . . 277 264 239 5 . 238 374 202 165 . 152 199 179 Average Temperature 83 | . 55 99 18 9 . 28 69 19 39 90 12 7 . 77 211 91 132 . . 80 32 75 5 . 111 111 87 76 . 76 81 98 Received Heat Transfer 4889 | . 198 30 147 78 . 216 603 288 90 234 435 102 48 189 420 90 234 . 9 . 9 22 87 . 36 291 598 177 . 36 99 123 Effects 27 | . . . . . . . . . . 2 . . . . 13 1 4 . . . . . . . . 7 . . . . . . Shutdowns 5 | . . . . . . . . . . . . . . . 1 1 2 . . . . . . . . 1 . . . . . . Energy Bleed 7 | . . . . . . . . . . . . . . . 4 . 1 . . . . . . . . 2 . . . . . . Interference 9 | . . . . . . . . . . 2 . . . . 4 . . . . . . . . . . 3 . . . . . . Matter Decay 3 | . . . . . . . . . . . . . . . 2 . . . . . . . . . . 1 . . . . . . Short Circuit 1 | . . . . . . . . . . . . . . . 1 . . . . . . . . . . . . . . . . . Damage (minor) 1 | . . . . . . . . . . . . . . . 1 . . . . . . . . . . . . . . . . . Damage (major) 1 | . . . . . . . . . . . . . . . . . 1 . . . . . . . . . . . . . . . Siege Activations 4 | . . . . . . . . . . . . . . . . . . . . . . . . . . . . 4 . . . . Total Turns 92 | . . . . . . . . . . . . . . . . . . . . . . . . . . . . 92 . . . . Longest Duration 30 | . . . . . . . . . . . . . . . . . . . . . . . . . . . . 30 . . . . Robots Corrupted 32 | . . . . . . . 2 7 . . . . . 1 6 4 4 . 4 2 1 1 . . . . . . . . . . Combat Hostiles 29 | . . . . . . . 2 7 . . . . . 1 6 4 2 . 3 2 1 1 . . . . . . . . . . Parts Fried 54 | . . . . 1 . . 3 8 . . . . 2 4 8 1 9 . 4 1 1 1 1 . . . . . . 10 . . Impact Corruptions 1 | . . . . . . . . . . . . . . . . . . . . . . . . . . 1 . . . . . . Robots Melted 7 | . . . . . . . . . . . 2 2 . . 3 . . . . . . . . . . . . . . . . . Combat Hostiles 7 | . . . . . . . . . . . 2 2 . . 3 . . . . . . . . . . . . . . . . . Parts Melted 31 | . . . . . . . 1 . . . 7 5 2 6 8 . . . . . . . 2 . . . . . . . . . Heat Transferred 14018 | . . . . 37 . 150 629 485 222 185 2550 1475 698 2712 2717 1003 568 . 50 . . . 500 . . . . . . . . 37 Parts Sabotaged . | . . . . . . . . . . . . . . . . . . . . . . . . . . . . . . . . . Parts Stolen . | . . . . . . . . . . . . . . . . . . . . . . . . . . . . . . . . . Parts Stripped . | . . . . . . . . . . . . . . . . . . . . . . . . . . . . . . . . . Power Chain Reactions 17 | . . . . . . 2 . 5 . . . . . . 3 5 1 . 1 . . . . . . . . . . . . . Missiles Intercepted . | . . . . . . . . . . . . . . . . . . . . . . . . . . . . . . . . . Alert | -11 -10 -10 -9 -9 -9 -8 -8 -8 -8 -8 -7 -7 -7 -7 -6 -6 -5 -5 -5 -5 -5 -5 -4 -4 -4 -4 -3 -3 -3 -2 -1 -1 ------- Run | Scr Mat Min Mat Min Exi Min Mat Gar Mat Gar Fac Gar Fac Gar Fac Gar Fac Was Fac Gar Fac Gar Fac Was Fac Ext Res Arm Lab Res Acc Com Peak Influence 1524 | 10 160 102 774 361 . 376 409 985 511 657 1342 1524 915 1003 936 1155 716 197 762 1310 709 988 1368 478 490 378 377 597 . 269 852 805 Initial 837 | . 6 16 39 186 . . 146 111 479 193 344 837 800 206 526 571 606 114 121 533 687 257 518 478 334 105 55 105 . . 131 544 Average 566 | 3 51 31 547 289 . 253 259 713 377 483 648 1301 442 556 612 919 236 158 249 1002 391 738 943 478 395 140 195 436 . 110 545 693 Maximum Alert Level 4 | . . . 3 1 . 1 2 3 2 2 4 4 3 3 3 4 3 . 3 4 3 3 4 2 2 1 1 2 . 1 3 3 Low Security (%) 18 | 100 100 100 11 3 . 23 22 5 . 3 5 . 3 . . . 55 100 69 . 15 . . . . 83 57 9 . 77 6 . Level 1 26 | . . . 7 96 . 76 76 5 43 28 42 . 52 36 . . 31 . 21 . 43 12 . . 48 16 42 17 . 22 4 . Level 2 24 | . . . 47 . . . . 44 56 67 1 . 26 30 76 11 11 . . 23 36 30 36 100 51 . . 72 . . 71 38 Level 3 21 | . . . 33 . . . . 45 . . 40 31 17 32 23 74 1 . 9 33 4 57 18 . . . . . . . 17 61 Level 4 10 | . . . . . . . . . . . 10 68 . . . 13 . . . 42 . . 44 . . . . . . . . . Level 5 . | . . . . . . . . . . . . . . . . . . . . . . . . . . . . . . . . . High Security . | . . . . . . . . . . . . . . . . . . . . . . . . . . . . . . . . . Max Security . | . . . . . . . . . . . . . . . . . . . . . . . . . . . . . . . . . Squads Dispatched 92 | . 2 . 5 . . 1 7 . 1 . 14 . 11 . 9 . 4 . 5 . 4 . 5 . 4 1 3 3 . 3 8 2 Investigation 27 | . 2 . 1 . . . 3 . 1 . 2 . 3 . 2 . . . 1 . 3 . 1 . 2 . 2 . . . 3 1 Extermination 10 | . . . . . . . . . . . 3 . 2 . . . 1 . 1 . . . 1 . . . . 1 . . 1 . Reinforcement 41 | . . . 4 . . 1 4 . . . 6 . 3 . 4 . 3 . 3 . . . 1 . 1 1 1 2 . 3 3 1 Assault 8 | . . . . . . . . . . . 3 . 1 . 1 . . . . . . . 1 . 1 . . . . . 1 . Garrison 6 | . . . . . . . . . . . . . 2 . 2 . . . . . 1 . 1 . . . . . . . . . Intercept . | . . . . . . . . . . . . . . . . . . . . . . . . . . . . . . . . . Construction Impeded 5 | . . . . . . 1 . . . . 3 . . . 1 . . . . . . . . . . . . . . . . . Haulers Reinforced 6 | . . . . . . . 1 . . . 1 . 1 . 1 . 1 . . . . . 1 . . . . . . . . . Active Scanning Responses . | . . . . . . . . . . . . . . . . . . . . . . . . . . . . . . . . . Cargo Convoy Interrupts 1 | . . . . . . . . . . . 1 . . . . . . . . . . . . . . . . . . . . . Stealth | -11 -10 -10 -9 -9 -9 -8 -8 -8 -8 -8 -7 -7 -7 -7 -6 -6 -5 -5 -5 -5 -5 -5 -4 -4 -4 -4 -3 -3 -3 -2 -1 -1 --------- Run | Scr Mat Min Mat Min Exi Min Mat Gar Mat Gar Fac Gar Fac Gar Fac Gar Fac Was Fac Gar Fac Gar Fac Was Fac Ext Res Arm Lab Res Acc Com Distress Signals 28 | . 1 . 1 . . . 7 . . . 2 . . . 2 . . . 1 . 1 . 3 . . 2 1 3 . 1 2 1 Communications Jammed 10 | . . . . . . . . . . . . . . . 5 . 5 . . . . . . . . . . . . . . . Distress Signals 2 | . . . . . . . . . . . . . . . 1 . 1 . . . . . . . . . . . . . . . Times Spotted 710 | . 22 5 44 15 . 15 45 31 12 15 51 28 26 21 32 29 20 8 14 10 13 5 26 6 16 22 32 30 . 23 50 44 Peak Tracking Total 19 | . 7 3 7 4 . 4 5 6 2 5 6 5 5 4 10 7 4 6 7 6 4 5 9 6 12 6 11 5 . 10 13 19 Tactical Retreats 53 | . . . 1 . . . 3 1 . 1 . . . 3 4 3 2 1 2 2 . 2 2 . 2 1 1 4 . 3 10 5 Traps | -11 -10 -10 -9 -9 -9 -8 -8 -8 -8 -8 -7 -7 -7 -7 -6 -6 -5 -5 -5 -5 -5 -5 -4 -4 -4 -4 -3 -3 -3 -2 -1 -1 ------- Run | Scr Mat Min Mat Min Exi Min Mat Gar Mat Gar Fac Gar Fac Gar Fac Gar Fac Was Fac Gar Fac Gar Fac Was Fac Ext Res Arm Lab Res Acc Com Traps Triggered 90 | . 2 . 1 . . . 3 10 . 4 1 17 . 6 2 13 7 . 2 4 . 6 1 . 1 1 1 1 . 3 1 3 Indirectly 8 | . . . . . . . 1 4 . . . . . . . 3 . . . . . . . . . . . . . . . . Trap Hack Attempts . | . . . . . . . . . . . . . . . . . . . . . . . . . . . . . . . . . Triggered . | . . . . . . . . . . . . . . . . . . . . . . . . . . . . . . . . . Disarmed 1 | . . . . . . . . . . . . . . . . . 1 . . . . . . . . . . . . . . . Reprogrammed . | . . . . . . . . . . . . . . . . . . . . . . . . . . . . . . . . . Reused . | . . . . . . . . . . . . . . . . . . . . . . . . . . . . . . . . . Traps Extracted . | . . . . . . . . . . . . . . . . . . . . . . . . . . . . . . . . . Installed . | . . . . . . . . . . . . . . . . . . . . . . . . . . . . . . . . . Triggered 2 | . . . . . . . . . . . 1 . . . . 1 . . . . . . . . . . . . . . . . Machines | -11 -10 -10 -9 -9 -9 -8 -8 -8 -8 -8 -7 -7 -7 -7 -6 -6 -5 -5 -5 -5 -5 -5 -4 -4 -4 -4 -3 -3 -3 -2 -1 -1 ---------- Run | Scr Mat Min Mat Min Exi Min Mat Gar Mat Gar Fac Gar Fac Gar Fac Gar Fac Was Fac Gar Fac Gar Fac Was Fac Ext Res Arm Lab Res Acc Com Machines Disabled 106 | . . . 3 . . 4 1 4 1 3 . 4 2 8 2 3 11 . 11 5 3 1 33 . . . 4 1 . . 1 1 Max in Single Turn 7 | . . . 1 . . 2 1 1 . 1 . 1 1 1 1 1 2 . 6 1 2 1 7 . . . 2 1 . . 1 1 Garrison Access 10 | . . . . . . . . . . . . . 1 . 1 . 2 . . . 1 . 1 . 1 . . . . . 3 . Garrison Relay 21 | . . . . . . . . 4 . 3 . 3 . 4 . 2 . . . 4 . 1 . . . . . . . . . . Machines Sabotaged . | . . . . . . . . . . . . . . . . . . . . . . . . . . . . . . . . . Garrisons Compromised 1 | . . . . . . . . . . . 1 . . . . . . . . . . . . . . . . . . . . . Overloaded Fab Kills . | . . . . . . . . . . . . . . . . . . . . . . . . . . . . . . . . . Fab Network Shutdowns . | . . . . . . . . . . . . . . . . . . . . . . . . . . . . . . . . . Hacking | -11 -10 -10 -9 -9 -9 -8 -8 -8 -8 -8 -7 -7 -7 -7 -6 -6 -5 -5 -5 -5 -5 -5 -4 -4 -4 -4 -3 -3 -3 -2 -1 -1 --------- Run | Scr Mat Min Mat Min Exi Min Mat Gar Mat Gar Fac Gar Fac Gar Fac Gar Fac Was Fac Gar Fac Gar Fac Was Fac Ext Res Arm Lab Res Acc Com Machines Accessed 138 | . 9 . 2 . 2 . 13 . 4 . 6 . 6 . 5 . 10 . 5 . 16 . 5 . 6 15 2 9 . 5 15 3 Terminals 97 | . 8 . 2 . . . 10 . 2 . 3 . 5 . 3 . 7 . 3 . 9 . 3 . 3 14 1 6 . 4 11 3 Fabricators 8 | . . . . . . . . . . . . . . . . . 1 . . . 1 . 1 . 1 . 1 2 . 1 . . Repair Stations 8 | . . . . . . . 2 . 1 . 2 . . . . . . . 1 . 2 . . . . . . . . . . . Recycling Units 4 | . 1 . . . . . . . . . . . . . . . . . . . 1 . . . . 1 . 1 . . . . Scanalyzers 2 | . . . . . . . . . . . . . . . . . . . . . 1 . . . 1 . . . . . . . Garrison Access 17 | . . . . . . . 1 . 1 . 1 . 1 . 2 . 2 . 1 . 2 . 1 . 1 . . . . . 4 . Total Hacks 414 | . 29 . 5 . 24 . 39 . 15 . 14 . 15 . 13 . 31 . 21 . 57 . 13 . 26 39 9 20 . 10 29 5 Successful 251 | . 18 . 3 . 24 . 22 . 9 . 6 . 7 . 9 . 17 . 10 . 37 . 11 . 16 32 2 8 . 2 16 2 Failed 161 | . 11 . 2 . . . 17 . 6 . 8 . 8 . 4 . 14 . 11 . 20 . 2 . 9 6 7 12 . 8 13 3 Catastrophic 34 | . . . 1 . . . 7 . 1 . 2 . 3 . 2 . 2 . 2 . 4 . . . 1 . . 4 . 2 2 1 Database Lockouts 2 | . . . . . . . . . . . . . . . . . . . . . . . . . 1 1 . . . . . . Manual 200 | . 14 . 2 . 1 . 26 . 11 . 7 . 6 . 9 . 10 . 11 . 30 . 6 . 17 30 . 4 . 6 6 4 Terminals 295 | . 28 . 5 . . . 29 . 10 . 8 . 12 . 8 . 25 . 16 . 38 . 10 . 19 37 3 12 . 9 21 5 Fabricators 26 | . . . . . . . . . . . . . . . . . 2 . . . 5 . 2 . 4 . 6 6 . 1 . . Repair Stations 24 | . . . . . . . 8 . 2 . 4 . . . . . . . 3 . 7 . . . . . . . . . . . Recycling Units 7 | . 1 . . . . . . . . . . . . . . . . . . . 2 . . . . 2 . 2 . . . . Scanalyzers 2 | . . . . . . . . . . . . . . . . . . . . . 1 . . . 1 . . . . . . . Garrison Access 36 | . . . . . . . 2 . 3 . 2 . 3 . 5 . 4 . 2 . 4 . 1 . 2 . . . . . 8 . Terminal Hacks 134 | . 12 . 3 . 24 . 8 . 2 . 2 . 3 . 3 . 8 . 3 . 12 . 6 . 8 27 . 4 . . 7 2 Record 25 | . . . . . 23 . . . . . . . . . . . . . . . . . . . . 1 . . . . 1 . Part Schematic 5 | . . . . . . . . . . . . . . . . . 1 . . . 2 . . . 1 1 . . . . . . Robot Schematic 1 | . . . . . . . . . . . . . . . . . . . . . 1 . . . . . . . . . . . Robot Analysis 12 | . 1 . 1 . . . 1 . . . . . . . . . . . . . . . . . . 9 . . . . . . Prototype ID Bank 10 | . 4 . . . . . 1 . . . . . . . 1 . . . 1 . . . 3 . . . . . . . . . Open Door 14 | . . . . . . . . . . . . . . . . . . . . . . . . . . 11 . . . . 3 . Level Access Points 1 | . . . . . . . . . . . . . . . . . . . . . . . . . 1 . . . . . . . Branch Access Points 3 | . 1 . . . . . . . . . . . . . . . . . . . . . . . 1 1 . . . . . . Machine Index 3 | . . . . . . . . . . . . . . . . . . . . . 1 . . . 1 . . . . . 1 . Terminal Index 2 | . 1 . . . . . . . . . . . . . . . . . . . . . 1 . . . . . . . . . Garrison Index 2 | . . . . . . . . . . . . . . . . . 1 . . . . . 1 . . . . . . . . . Alert Level 1 | . . . . . . . . . . . . . . . . . . . . . . . . . . . . 1 . . . . Unreport Threat 15 | . . . 1 . . . 2 . 1 . 2 . 1 . 2 . . . . . 3 . . . 2 . . 1 . . . . Locate Traps 3 | . 1 . . . . . . . . . . . . . . . 1 . . . 1 . . . . . . . . . . . Disarm Traps 1 | . . . . . . . . . . . . . . . . . 1 . . . . . . . . . . . . . . . Dispatch Records 1 | . 1 . . . . . . . . . . . . . . . . . . . . . . . . . . . . . . . Security Status 1 | . . . . . . . . . . . . . . . . . . . . . . . . . . 1 . . . . . . Coupling Status 1 | . . . . . . . . . . . . . . . . . . . . . 1 . . . . . . . . . . . Recall Investigation 2 | . 1 . . . . . 1 . . . . . . . . . . . . . . . . . . . . . . . . . Hauler Manifests 6 | . 1 . 1 . . . 1 . . . . . 1 . . . 1 . . . 1 . . . . . . . . . . . Registered Components 1 | . . . . . . . . . . . . . . . . . 1 . . . . . . . . . . . . . . . Registered Prototypes 2 | . . . . . . . . . . . . . . . . . . . . . . . 1 . . 1 . . . . . . Zone Layout 20 | . 1 . . . . . 2 . 1 . . . 1 . . . 2 . 2 . 2 . . . 2 2 . 2 . . 2 1 EX-Prototype ID Bank 1 | . . . . . 1 . . . . . . . . . . . . . . . . . . . . . . . . . . . Disengage Seal 1 | . . . . . . . . . . . . . . . . . . . . . . . . . . . . . . . . 1 Fabricator Hacks 14 | . . . . . . . . . . . . . . . . . 2 . . . 3 . 2 . 3 . 2 2 . . . . Network Status 1 | . . . . . . . . . . . . . . . . . . . . . 1 . . . . . . . . . . . Load Schematic 6 | . . . . . . . . . . . . . . . . . 1 . . . 1 . 1 . 1 . 1 1 . . . . Build 7 | . . . . . . . . . . . . . . . . . 1 . . . 1 . 1 . 2 . 1 1 . . . . Repair Station Hacks 18 | . . . . . . . 7 . 2 . 1 . . . . . . . 2 . 6 . . . . . . . . . . . Scan Component 10 | . . . . . . . 4 . 1 . 1 . . . . . . . 1 . 3 . . . . . . . . . . . Repair 8 | . . . . . . . 3 . 1 . . . . . . . . . 1 . 3 . . . . . . . . . . . Recycling Unit Hacks 5 | . . . . . . . . . . . . . . . . . . . . . 2 . . . . 2 . 1 . . . . Retrieve Matter 3 | . . . . . . . . . . . . . . . . . . . . . 1 . . . . 1 . 1 . . . . Retrieve Components 2 | . . . . . . . . . . . . . . . . . . . . . 1 . . . . 1 . . . . . . Scanalyzer . | . . . . . . . . . . . . . . . . . . . . . . . . . . . . . . . . . Garrison Access Hacks 30 | . . . . . . . 1 . 1 . 2 . 2 . 4 . 4 . 2 . 4 . 1 . 2 . . . . . 7 . Unlock Access 7 | . . . . . . . 1 . 1 . 1 . 1 . 1 . . . 1 . 1 . . . . . . . . . . . Seal Access 9 | . . . . . . . . . . . . . . . 1 . 2 . . . 1 . 1 . 1 . . . . . 3 . Coupler Status 14 | . . . . . . . . . . . 1 . 1 . 2 . 2 . 1 . 2 . . . 1 . . . . . 4 . Unauthorized Hacks 50 | . 6 . . . . . 6 . 4 . 1 . 2 . 2 . 3 . 3 . 10 . 2 . 3 3 . 1 . 2 2 . Terminals 39 | . 5 . . . . . 5 . 3 . . . 1 . 1 . 3 . 3 . 7 . 2 . 2 3 . 1 . 2 1 . Track 2 | . 1 . . . . . . . . . . . . . . . . . . . 1 . . . . . . . . . . . Assimilate 9 | . 1 . . . . . . . . . . . . . . . 1 . 1 . 3 . 1 . . 1 . . . . 1 . Botnet 21 | . 2 . . . . . 4 . 2 . . . 1 . 1 . 2 . 1 . 2 . 1 . 1 2 . 1 . 1 . . Detonate 1 | . . . . . . . . . . . . . . . . . . . . . . . . . 1 . . . . . . . Disrupt 2 | . . . . . . . 1 . . . . . . . . . . . 1 . . . . . . . . . . . . . Operators 4 | . 1 . . . . . . . 1 . . . . . . . . . . . 1 . . . . . . . . 1 . . Fabricators 2 | . . . . . . . . . . . . . . . . . . . . . 2 . . . . . . . . . . . Prioritize 1 | . . . . . . . . . . . . . . . . . . . . . 1 . . . . . . . . . . . Siphon 1 | . . . . . . . . . . . . . . . . . . . . . 1 . . . . . . . . . . . Repair Stations 1 | . . . . . . . . . . . 1 . . . . . . . . . . . . . . . . . . . . . Mechanics 1 | . . . . . . . . . . . 1 . . . . . . . . . . . . . . . . . . . . . Recycling Units 1 | . 1 . . . . . . . . . . . . . . . . . . . . . . . . . . . . . . . Tunnel 1 | . 1 . . . . . . . . . . . . . . . . . . . . . . . . . . . . . . . Scanalyzers 2 | . . . . . . . . . . . . . . . . . . . . . 1 . . . 1 . . . . . . . Extract 2 | . . . . . . . . . . . . . . . . . . . . . 1 . . . 1 . . . . . . . Garrison Access 5 | . . . . . . . 1 . 1 . . . 1 . 1 . . . . . . . . . . . . . . . 1 . Reprogram 1 | . . . . . . . . . 1 . . . . . . . . . . . . . . . . . . . . . . . Eject 4 | . . . . . . . 1 . . . . . 1 . 1 . . . . . . . . . . . . . . . 1 . Data Cores Recovered 2 | . . . . . . . . . 1 . . . . . . . . . . . . . . . . 1 . . . . . . Used 2 | . . . . . . . . . 1 . . . . . . . . . . . . . . . . 1 . . . . . . Hacking Detections 103 | . 8 . 2 . . . 13 . 4 . 5 . 6 . 5 . 7 . 5 . 12 . 2 . 4 2 2 8 . 5 11 2 Full Trace Events 12 | . . . . . . . . . . . 1 . 1 . . . . . 1 . 2 . 1 . 1 . 2 . . . 2 1 Feedback Events 2 | . . . . . . . . . . . . . . . . . . . . . . . . . . . 1 . . . 1 . Hackware Fried 2 | . . . . . . . . . . . . . . . . . . . . . . . . . . . 1 . . . 1 . Feedback Blocked . | . . . . . . . . . . . . . . . . . . . . . . . . . . . . . . . . . Robot Schematics Acquired 1 | . . . . . . . . . . . . . . . . . . . . . 1 . . . . . . . . . . . Robots Built 2 | . . . . . . . . . . . . . . . . . . . . . 2 . . . . . . . . . . . Matter 556 | . . . . . . . . . . . . . . . . . . . . . 238 . 318 . . . . . . . . . Time 140 | . . . . . . . . . . . . . . . . . . . . . 84 . 56 . . . . . . . . . Total Robot Build Rating 12 | . . . . . . . . . . . . . . . . . . . . . 12 . . . . . . . . . . . Part Schematics Acquired 22 | . . . . . . . . . . . . . . . . . 1 . . . 5 . . . 15 1 . . . . . . Parts Built 4 | . . . . . . . . . . . . . . . . . . . . . . . . . 2 . 1 1 . . . . Matter 1283 | . . . . . . . . . . . . . . . . . 256 . . . . . . . 424 . 318 285 . . . . Time 442 | . . . . . . . . . . . . . . . . . 128 . . . . . . . 106 . 56 152 . . . . Total Part Build Rating 23 | . . . . . . . . . . . . . . . . . . . . . . . . . 12 . 6 5 . . . . Parts Repaired 8 | . . . . . . . 3 . 1 . . . . . . . . . 1 . 3 . . . . . . . . . . . Time 321 | . . . . . . . 102 . 32 . . . . . . . . . 47 . 140 . . . . . . . . . . . Parts Recycled . | . . . . . . . . . . . . . . . . . . . . . . . . . . . . . . . . . Recycled Matter . | . . . . . . . . . . . . . . . . . . . . . . . . . . . . . . . . . Retrieved Matter 314 | . . . . . . . . . . . . . . . . . . . . . . . . . . 314 . . . . . . Retrieved Components 13 | . . . . . . . . . . . . . . . . . . . . . 3 . . . . 10 . . . . . . Parts Scanalyzed . | . . . . . . . . . . . . . . . . . . . . . . . . . . . . . . . . . Part Schematics Acquired . | . . . . . . . . . . . . . . . . . . . . . . . . . . . . . . . . . Parts Damaged . | . . . . . . . . . . . . . . . . . . . . . . . . . . . . . . . . . Bothacking | -11 -10 -10 -9 -9 -9 -8 -8 -8 -8 -8 -7 -7 -7 -7 -6 -6 -5 -5 -5 -5 -5 -5 -4 -4 -4 -4 -3 -3 -3 -2 -1 -1 ------------ Run | Scr Mat Min Mat Min Exi Min Mat Gar Mat Gar Fac Gar Fac Gar Fac Gar Fac Was Fac Gar Fac Gar Fac Was Fac Ext Res Arm Lab Res Acc Com Used RIF Installer 7 | . . . . . . . . 1 . 1 . 1 . 1 . 1 . . . 1 . 1 . . . . . . . . . . Coupler Efficiency 1 | . . . . . . . . . . . . . . . . . . . . 1 . . . . . . . . . . . . Hotswap 1 | . . . . . . . . . . 1 . . . . . . . . . . . . . . . . . . . . . . Zone Cloak 1 | . . . . . . . . . . . . . . . . . . . . . . 1 . . . . . . . . . . Patrol Navigation 1 | . . . . . . . . . . . . 1 . . . . . . . . . . . . . . . . . . . . Structural Interface 1 | . . . . . . . . . . . . . . 1 . . . . . . . . . . . . . . . . . . Program Shield 1 | . . . . . . . . . . . . . . . . 1 . . . . . . . . . . . . . . . . Robots Hacked 72 | . . . . 1 3 . . 5 1 5 6 8 11 3 4 9 4 . . 4 6 1 . . 1 . . . . . . . Non-combat 23 | . . . . . 3 . . . . . 1 . 5 . 4 . 4 . . . 5 . . . 1 . . . . . . . Combat 49 | . . . . 1 . . . 5 1 5 5 8 6 3 . 9 . . . 4 1 1 . . . . . . . . . . Robot Hacks Applied 83 | . . . . 1 3 . . 6 1 5 7 8 15 3 5 9 8 . . 4 6 1 . . 1 . . . . . . . parse_system 6 | . . . . 1 3 . . 1 . . . . 1 . . . . . . . . . . . . . . . . . . . ignore_repairs 1 | . . . . . . . . . . . . . 1 . . . . . . . . . . . . . . . . . . . find_fabricator 1 | . . . . . . . . . . . 1 . . . . . . . . . . . . . . . . . . . . . drop_inventory 4 | . . . . . . . . . . . . . . . 1 . 1 . . . 2 . . . . . . . . . . . find_recycling 1 | . . . . . . . . . . . . . 1 . . . . . . . . . . . . . . . . . . . ignore_parts 1 | . . . . . . . . . . . . . . . . . . . . . 1 . . . . . . . . . . . find_station 1 | . . . . . . . . . . . . . . . 1 . . . . . . . . . . . . . . . . . purge_threat 7 | . . . . . . . . . . . . . 4 . . . 3 . . . . . . . . . . . . . . . locate_traps 1 | . . . . . . . . . . . . . 1 . . . . . . . . . . . . . . . . . . . map_route 7 | . . . . . . . . . . . . . . . 2 . 2 . . . 2 . . . 1 . . . . . . . find_garrison 4 | . . . . . . . . . . . 2 . 2 . . . . . . . . . . . . . . . . . . . amplify_resonance 7 | . . . . . . . . . . . 1 1 1 . . 4 . . . . . . . . . . . . . . . . reboot_system 2 | . . . . . . . . . . 1 . . . 1 . . . . . . . . . . . . . . . . . . go_dormant 1 | . . . . . . . . 1 . . . . . . . . . . . . . . . . . . . . . . . . overwrite_iff 16 | . . . . . . . . 1 . 1 . 6 2 2 . 2 . . . 2 . . . . . . . . . . . . streamctrl_low 3 | . . . . . . . . . . . . . . . 1 . 2 . . . . . . . . . . . . . . . formatsys_high 20 | . . . . . . . . 3 1 3 3 1 2 . . 3 . . . 2 1 1 . . . . . . . . . . Relay Couplers Released 96 | . . . . . . . 3 14 . 11 . 10 1 18 3 7 . . . 16 . 5 4 . . . . . . . 4 . Ejected 11 | . . . . . . . 3 . . . . . 1 . 3 . . . . . . . . . . . . . . . 4 . Machine Destruction 85 | . . . . . . . . 14 . 11 . 10 . 18 . 7 . . . 16 . 5 4 . . . . . . . . . Attached 31 | . . . . . . . . 4 1 2 2 2 2 3 . 4 2 . . 4 1 2 . . . . . . . . 2 . Robots Rewired 24 | . . . . . . . . . . . . 6 . . . . . . . 6 . . . . . 4 . 8 . . . . Allies Hacked 3 | . . . . . . . . . . . . . 1 . . . . . . . 1 . 1 . . . . . . . . . Hacks Repelled 1 | . . . . . . . . . . . . . . . . . . . . 1 . . . . . . . . . . . . Allies | -11 -10 -10 -9 -9 -9 -8 -8 -8 -8 -8 -7 -7 -7 -7 -6 -6 -5 -5 -5 -5 -5 -5 -4 -4 -4 -4 -3 -3 -3 -2 -1 -1 -------- Run | Scr Mat Min Mat Min Exi Min Mat Gar Mat Gar Fac Gar Fac Gar Fac Gar Fac Was Fac Gar Fac Gar Fac Was Fac Ext Res Arm Lab Res Acc Com Total Allies 127 | . 1 3 . . . . . 4 1 4 21 13 4 2 1 5 2 19 1 10 5 1 1 . . 20 . 8 . . 1 . Largest Group 19 | . 1 3 2 . . . . 2 2 2 18 8 8 1 1 4 1 19 1 6 4 3 3 . . 6 1 7 . . 1 . Highest-Rated Group 755 | . 10 40 32 . . . . 30 30 30 755 240 256 32 14 68 26 714 10 132 164 165 131 . . 319 29 350 . . 45 . Highest-Rated Ally 156 | . 10 16 16 . . . . 15 16 16 74 32 32 32 14 32 26 50 10 49 54 85 56 . . 156 29 56 . . 45 . Total Orders 35 | . . . . . . . . 3 . . . 4 8 . 2 10 3 . . 1 . 3 . . . . . 1 . . . . STAY 21 | . . . . . . . . 2 . . . 3 4 . . 7 2 . . 1 . 2 . . . . . . . . . . ROAM 2 | . . . . . . . . . . . . . . . 1 . . . . . . . . . . . . 1 . . . . FOLLOW 10 | . . . . . . . . 1 . . . 1 4 . . 3 . . . . . 1 . . . . . . . . . . AID 2 | . . . . . . . . . . . . . . . 1 . 1 . . . . . . . . . . . . . . . Ally Attacks 530 | . . 16 25 . . . . 2 25 7 92 18 60 3 . 31 . 56 . 21 28 13 40 . . 56 . 37 . . . . Total Damage 14994 | . . 153 337 . . . . 58 461 86 1928 387 2054 135 . 838 . 2675 . 379 527 706 1226 . . 1494 . 1550 . . . . Kills 107 | . . 3 5 . . . . 1 6 . 21 4 17 . . 4 . 5 . 3 2 6 9 . . 10 . 11 . . . . Allies Corrupted 3 | . . . . . . . . . . . 1 . 1 . . . . . . . . . . . . 1 . . . . . . Allies Melted 1 | . . . . . . . . . . . . . . . . . . . . . 1 . . . . . . . . . . . Intel | -11 -10 -10 -9 -9 -9 -8 -8 -8 -8 -8 -7 -7 -7 -7 -6 -6 -5 -5 -5 -5 -5 -5 -4 -4 -4 -4 -3 -3 -3 -2 -1 -1 ------- Run | Scr Mat Min Mat Min Exi Min Mat Gar Mat Gar Fac Gar Fac Gar Fac Gar Fac Was Fac Gar Fac Gar Fac Was Fac Ext Res Arm Lab Res Acc Com Robot Analysis Total 12 | . 1 . 1 . . . 1 . . . . . . . . . . . . . . . . . . 9 . . . . . . Derelict Logs Recovered 2 | . . 1 . 1 . . . . . . . . . . . . . . . . . . . . . . . . . . . . Drone Launches . | . . . . . . . . . . . . . . . . . . . . . . . . . . . . . . . . . Drone Recoveries . | . . . . . . . . . . . . . . . . . . . . . . . . . . . . . . . . . Exploration | -11 -10 -10 -9 -9 -9 -8 -8 -8 -8 -8 -7 -7 -7 -7 -6 -6 -5 -5 -5 -5 -5 -5 -4 -4 -4 -4 -3 -3 -3 -2 -1 -1 ------------- Run | Scr Mat Min Mat Min Exi Min Mat Gar Mat Gar Fac Gar Fac Gar Fac Gar Fac Was Fac Gar Fac Gar Fac Was Fac Ext Res Arm Lab Res Acc Com Turns Passed 33850 | 123 1295 566 821 807 349 668 2044 3127 931 1563 1850 3829 2353 2595 846 1464 1522 87 377 638 974 563 453 42 361 1185 476 922 3 218 667 131 Spaces Moved 21301 | 79 769 337 445 557 277 428 936 1089 308 508 540 1227 799 1005 531 1005 1060 212 602 795 1383 885 573 84 434 689 326 785 9 487 1886 251 Core 773 | 3 . . . . . . . . . . . . . . . . 102 . . . . . 84 84 429 71 . . . . . . Treads 6140 | . 610 337 42 . . . 225 1089 308 508 540 1227 799 376 . . 4 . . . . . . . . . . 75 . . . . Legs 1117 | . . . . . . . . . . . . . . . . . . . . . . . . . . 618 251 248 . . . . Wheels 5442 | 76 159 . 403 557 277 428 711 . . . . . . 629 531 1005 666 . . . . . . . . . . . . . . . Hover 4659 | . . . . . . . . . . . . . . . . . 288 212 602 795 1383 885 489 . 5 . . . . . . . Flight 3170 | . . . . . . . . . . . . . . . . . . . . . . . . . . . 75 462 9 487 1886 251 Fastest Speed 17 | 50 95 160 110 116 123 113 128 261 270 270 267 270 267 123 110 105 36 38 38 48 40 40 40 50 50 50 25 25 37 25 22 17 Average Speed 124 | 89 146 160 129 121 123 120 167 263 270 270 268 270 269 177 112 110 92 38 40 48 41 40 48 50 50 122 98 72 37 33 23 25 Slowest Speed 2100 | 95 160 160 260 150 123 145 261 270 270 270 270 370 370 366 125 210 2100 38 48 48 123 40 80 50 100 250 280 245 37 117 37 40 Overloaded Moves . | . . . . . . . . . . . . . . . . . . . . . . . . . . . . . . . . . Propulsion Burnouts . | . . . . . . . . . . . . . . . . . . . . . . . . . . . . . . . . . Robots Hopped 33 | . . . . . . . . . . . . . . . . . . . . . . . . . . . 2 2 . 11 12 6 Cave-ins Triggered 1 | . . . . . . . . . . . . . . . . . . . . 1 . . . . . . . . . . . . Exploration Rate (%) 54 | 5 97 97 41 87 66 96 81 84 28 71 16 90 28 89 17 84 31 92 24 90 36 83 20 89 17 65 11 61 5 20 58 20 Regions Visited 32 Branch Regions 8 Pre-discovered Areas 3 | . 1 1 . . 1 . . . . . . . . . . . . . . . . . . . . . . . . . . . Known Exits Taken 12 | . 1 . 1 . . 1 1 . 1 . 1 . 1 . 1 . . . 1 . 1 . . . 1 1 . . . . . . Unknown Exits Taken 9 | 1 . 1 . 1 1 . . . . . . . . . . . . . . . . . . . . . 1 1 1 1 1 . Scrap Searched 7 | . . 1 . 4 . 2 . . . . . . . . . . . . . . . . . . . . . . . . . . Spaces Dug 130 | . . . 11 . . . 9 4 1 9 8 . 13 . 19 . 50 . . . . . 1 . . 4 1 . . . . . Terrain Destroyed 1225 | . . . 55 65 . 116 9 12 1 9 72 24 13 78 79 17 88 . 20 97 37 152 103 . . 46 31 6 . . 80 15 Melee 41 | . . . . . . . 9 3 1 9 8 . 7 . 2 . 2 . . . . . . . . . . . . . . . Projectile 118 | . . . 3 . . . . . . . 1 . . . . . 30 . . . . . 12 . . 46 19 5 . . 2 . AOE 1065 | . . . 52 65 . 116 . 9 . . 63 24 6 78 77 17 56 . 20 97 37 152 91 . . . 12 . . . 78 15 Terrain Rammed 1 | . . . . . . . . . . . . . . . . . . . . . . . . . . . . 1 . . . . Walls Destroyed 1 | . . . . . . . . . . . . . . . . . . . . . . . . . . . . 1 . . . . Machines Disabled . | . . . . . . . . . . . . . . . . . . . . . . . . . . . . . . . . . Actions | -11 -10 -10 -9 -9 -9 -8 -8 -8 -8 -8 -7 -7 -7 -7 -6 -6 -5 -5 -5 -5 -5 -5 -4 -4 -4 -4 -3 -3 -3 -2 -1 -1 --------- Run | Scr Mat Min Mat Min Exi Min Mat Gar Mat Gar Fac Gar Fac Gar Fac Gar Fac Was Fac Gar Fac Gar Fac Was Fac Ext Res Arm Lab Res Acc Com Total 26565 | 103 852 349 569 632 282 532 1269 1250 383 616 762 1560 938 1673 677 1258 1441 217 718 1014 1773 1055 698 83 572 919 408 1062 8 514 2074 304 Wait 2271 | . 13 5 18 9 . 44 135 26 43 16 32 52 47 445 43 77 137 1 60 130 345 77 51 . 105 60 23 127 . 5 108 37 Move 21208 | 78 768 336 444 556 276 427 935 1087 307 507 539 1226 798 1004 530 1004 1060 211 601 794 1383 884 573 83 433 688 322 780 8 466 1862 238 Hop 29 | . . . . . . . . . . . . . . . . . . . . . . . . . . . 1 2 . 9 11 6 Pick Up 254 | 6 14 . 14 8 1 6 30 14 2 5 12 16 11 23 9 16 22 1 4 4 5 . 1 . 2 12 2 5 . 2 6 1 Fast Attach 240 | 6 1 . 7 2 . . 11 1 5 2 11 6 2 6 4 6 34 2 3 5 8 5 7 . 8 32 4 21 . 11 22 8 Attach 106 | 1 . . 2 3 . 4 9 8 1 2 6 3 1 5 6 6 14 . 1 1 1 . 1 . 4 2 3 6 . 4 9 3 Detach 64 | . . . 1 1 . . 3 2 2 2 6 3 1 3 . 1 7 1 1 . 3 2 2 . 3 7 1 5 . 3 4 . Swap 242 | . 4 . 14 10 1 12 17 13 3 15 24 10 15 21 12 24 16 . . 5 2 4 1 . . 13 3 2 . . 1 . Drop 276 | . 6 . 7 5 1 3 34 9 5 3 20 12 9 27 5 12 28 1 5 5 7 3 8 . 5 19 10 14 . 2 9 2 Fire 1288 | 12 42 7 62 36 . 36 83 54 9 25 98 141 46 78 63 67 112 . 17 36 19 35 52 . 5 55 23 35 . 12 24 4 Melee 181 | . . . . 2 3 . 9 23 2 29 8 16 8 25 5 10 10 . . . . . . . . 15 16 . . . . . Ram 11 | . . . . . . . . . . . . . . . . . 1 . . . . . 2 . 7 . . 1 . . . . Kick 2 | . . . . . . . . . . . . . . . . . . . . . . . . . . 2 . . . . . . Crush 19 | . 4 1 . . . . 3 1 3 1 6 . . . . . . . . . . . . . . . . . . . . . Escape Stasis 221 | . . . . . . . . 10 . 6 . 23 . 36 . 35 . . 26 17 . 45 . . . . . . . . 18 5 Rewire 153 | . . . . . . . . 2 1 3 . 52 . . . . . . . 17 . . . . . 14 . 64 . . . . Trap . | . . . . . . . . . . . . . . . . . . . . . . . . . . . . . . . . . Miscellaneous . | . . . . . . . . . . . . . . . . . . . . . . . . . . . . . . . . . Route ------- -11/Scrapyard -10/Materials (discovered 4 exits: *Mat x3 / *Min) -10/Mines (discovered 2 exits: *Mat x2) -9/Materials (discovered 3 exits: *Mat / *Min / [*Sto]) -9/Mines (discovered 3 exits: *Mat x2 / *Exi) -9/Exiles -8/Mines (discovered 2 exits: *Mat x2) -8/Materials (discovered 3 exits: *Fac x2 / Gar) -8/Garrison (discovered 3 exits: *Mat x3) -8/Materials -8/Garrison (discovered 2 exits: *Fac x2) -7/Factory -7/Garrison (discovered 3 exits: *Fac x3) -7/Factory (discovered 2 exits: *Fac / Gar) -7/Garrison (discovered 2 exits: *Fac x2) -6/Factory (discovered 2 exits: Fac / Gar) -6/Garrison (discovered 2 exits: *Fac x2) -5/Factory (discovered 2 exits: *Fac / [*Upp]) -5/Waste -5/Factory -5/Garrison (discovered 3 exits: *Fac x3) -5/Factory -5/Garrison (discovered 3 exits: *Fac x3) -4/Factory -4/Waste -4/Factory (discovered 8 exits: Res x4 / Upp x2 / *Ext x2) -4/Extension (discovered 2 exits: *Res / *Cet) -3/Research -3/Armory -3/Lab -2/Research -1/Access -1/Command To Epsilon Eridani History --------- Turn | Location | Event 13 | -11/Scrapyard | Discovered new exit (range 15) 124 | -11/Scrapyard | Entered Materials 222 | -10/Materials | Discovered new exit (range 14) 247 | -10/Materials | Discovered new exit (range 11) 307 | -10/Materials | Build established: Mutant 351 | -10/Materials | Discovered new exit (range 15) 564 | -10/Materials | Discovered new exit (range 18) 1271 | -10/Materials | Identified exit to Mines 1419 | -10/Materials | Entered Mines 1419 | -10/Mines | Accompanied by 1 ally 1681 | -10/Mines | Discovered new exit (range 12) 1846 | -10/Mines | Assisted by bots powering up and referring to "LRC-V3" 1949 | -10/Mines | Discovered new exit (range 8) 1985 | -10/Mines | Entered Materials 1985 | -9/Materials | Accompanied by 2 allies 1985 | -9/Materials | Evolved 2 slots: Propulsion x1, Utility x1 2210 | -9/Materials | Destroyed 7 combat bots 2303 | -9/Materials | Discovered new exit (range 5) 2466 | -9/Materials | Discovered new exit (range 17) 2599 | -9/Materials | Identified exit to Materials 2787 | -9/Materials | Discovered new exit (range 9) 2805 | -9/Materials | Identified exit to Mines 2806 | -9/Materials | Entered Mines 2818 | -9/Mines | Met a Derelict bent on vengeance 2875 | -9/Mines | Destroyed 7 combat bots 2895 | -9/Mines | Deemed a non-threat by the Exiles lab entrance 2895 | -9/Mines | Discovered new exit (range 5) 2947 | -9/Mines | Discovered exit to Materials (range 14) 2965 | -9/Mines | Assembled infested the area 3043 | -9/Mines | Met 8R-AWN 3240 | -9/Mines | Discovered exit to Materials (range 4) 3388 | -9/Mines | Learned Materials emergency access door positions 3613 | -9/Mines | Entered Exiles 3643 | -9/Exiles | Welcomed by 8R-AWN 3664 | -9/Exiles | Met EX-HEX 3714 | -9/Exiles | Met EX-DEC 3725 | -9/Exiles | Learned location of Zion (-6) 3773 | -9/Exiles | Met EX-BIN 3792 | -9/Exiles | Aligned with FarCom system 3793 | -9/Exiles | Given EX-Vault access code 3821 | -9/Exiles | Opened EX-Vault 3833 | -9/Exiles | Found Superbattery 3859 | -9/Exiles | Warned to stay clear of 0b10 Research branches 3946 | -9/Exiles | Discovered new exit (range 14) 3962 | -9/Exiles | Left Exiles lab with Superbattery 3962 | -9/Exiles | Entered Mines 3965 | -8/Mines | Core integrity fell below 50% 4403 | -8/Mines | Build established: Scavenger-Mutant 4456 | -8/Mines | Discovered exit to Materials (range 10) 4597 | -8/Mines | Discovered exit to Materials (range 13) 4630 | -8/Mines | Entered Materials 4630 | -8/Materials | Evolved 2 slots: Utility x1, Weapon x1 4688 | -8/Materials | Repaired Shock Bomb Launcher 4925 | -8/Materials | Build established: Scavenger-Skirmisher 5137 | -8/Materials | Lost 3 parts (1n1u1w) 5530 | -8/Materials | Discovered new exit (range 3) 5686 | -8/Materials | Repaired Autogun? 6039 | -8/Materials | Found Prototype Device 6086 | -8/Materials | Discovered new exit (range 4) 6253 | -8/Materials | Build established: Skirmisher 6298 | -8/Materials | Repaired Autogun 6667 | -8/Materials | Identified exit to Garrison 6674 | -8/Materials | Entered Garrison 6679 | -8/Garrison | Triggered checkpoint 6793 | -8/Garrison | Triggered checkpoint 6840 | -8/Garrison | Triggered checkpoint 6852 | -8/Garrison | Triggered checkpoint 6861 | -8/Garrison | Core integrity fell below 50% 6889 | -8/Garrison | Destroyed 9 combat bots 7078 | -8/Garrison | Build established: Mutant 7113 | -8/Garrison | Discovered new exit (range 8) 7149 | -8/Garrison | Installed Relay Interface Framework 7242 | -8/Garrison | Triggered checkpoint 7327 | -8/Garrison | Garrison Relay disabled 7470 | -8/Garrison | Triggered checkpoint 7800 | -8/Garrison | Discovered new exit (range 9) 7834 | -8/Garrison | Triggered checkpoint 7879 | -8/Garrison | Garrison Relay disabled 8653 | -8/Garrison | Discovered new exit (range 15) 8760 | -8/Garrison | Triggered checkpoint 8827 | -8/Garrison | Garrison Relay disabled 9064 | -8/Garrison | Triggered checkpoint 9103 | -8/Garrison | Garrison Relay disabled 9107 | -8/Garrison | Lost 3 parts (3w) 9801 | -8/Garrison | Entered Materials 9801 | -8/Materials | Accompanied by 2 allies 10029 | -8/Materials | Repaired Hvy. Assault Rifle? 10256 | -8/Materials | Build established: Scavenger-Skirmisher 10536 | -8/Materials | Identified exit to Garrison 10732 | -8/Materials | Entered Garrison 10774 | -8/Garrison | Triggered checkpoint 10824 | -8/Garrison | Garrison Relay disabled 10974 | -8/Garrison | Triggered checkpoint 11027 | -8/Garrison | Discovered new exit (range 10) 11260 | -8/Garrison | Triggered checkpoint 11356 | -8/Garrison | Garrison Relay disabled 11615 | -8/Garrison | Triggered checkpoint 11741 | -8/Garrison | Discovered new exit (range 14) 11838 | -8/Garrison | Expanded RIF knowledge: Hotswap 12072 | -8/Garrison | Garrison Relay disabled 12100 | -8/Garrison | Triggered checkpoint 12152 | -8/Garrison | Build established: Bothacker-Mutant 12295 | -8/Garrison | Entered Factory 12295 | -7/Factory | Accompanied by 2 allies 12295 | -7/Factory | Evolved 2 slots: Propulsion x1, Utility x1 13028 | -7/Factory | Build established: Bothacker-Skirmisher 13187 | -7/Factory | Cargo convoy interrupted 13284 | -7/Factory | Found Prototype Protection 13284 | -7/Factory | Identified Active Cooling Armor 13495 | -7/Factory | First assault squad dispatched 14046 | -7/Factory | Destroyed 9 combat bots 14142 | -7/Factory | Identified exit to Garrison 14145 | -7/Factory | Entered Garrison 14523 | -7/Garrison | Build established: Bothacker-Mutant 14544 | -7/Garrison | Garrison Relay disabled 14570 | -7/Garrison | Identified Active Sensor Suite 14852 | -7/Garrison | Triggered checkpoint 15003 | -7/Garrison | Triggered checkpoint 15126 | -7/Garrison | Triggered checkpoint 15343 | -7/Garrison | Triggered checkpoint 15504 | -7/Garrison | Destroyed 7 combat bots 15774 | -7/Garrison | Discovered new exit (range 12) 16012 | -7/Garrison | Triggered checkpoint 16085 | -7/Garrison | Garrison Relay disabled 16198 | -7/Garrison | Triggered checkpoint 16288 | -7/Garrison | Discovered new exit (range 15) 16474 | -7/Garrison | Triggered checkpoint 16535 | -7/Garrison | Garrison Relay disabled 16873 | -7/Garrison | Triggered checkpoint 16873 | -7/Garrison | Triggered checkpoint 17050 | -7/Garrison | Discovered new exit (range 9) 17096 | -7/Garrison | Expanded RIF knowledge: Patrol Navigation 17974 | -7/Garrison | Entered Factory 17974 | -7/Factory | Accompanied by 6 allies 18506 | -7/Factory | Garrison activated, responded to threat 18752 | -7/Factory | Discovered new exit (range 15) 20305 | -7/Factory | Identified exit to Garrison 20327 | -7/Factory | Entered Garrison 20341 | -7/Garrison | Expanded RIF knowledge: Structural Interface 20509 | -7/Garrison | Garrison Relay disabled 20875 | -7/Garrison | Build established: Bothacker-Skirmisher 21088 | -7/Garrison | Triggered checkpoint 21240 | -7/Garrison | Discovered new exit (range 11) 21522 | -7/Garrison | Triggered checkpoint 21539 | -7/Garrison | Build established: Bothacker-Mutant 21660 | -7/Garrison | Garrison Relay disabled 22004 | -7/Garrison | Triggered checkpoint 22123 | -7/Garrison | Discovered new exit (range 14) 22137 | -7/Garrison | Build established: Botlord-Mutant 22172 | -7/Garrison | Triggered checkpoint 22215 | -7/Garrison | Garrison Relay disabled 22299 | -7/Garrison | Triggered checkpoint 22391 | -7/Garrison | Triggered checkpoint 22710 | -7/Garrison | Garrison Relay disabled 22922 | -7/Garrison | Entered Factory 22922 | -6/Factory | Evolved 2 slots: Propulsion x1, Utility x1 23195 | -6/Factory | Discovered new exit (range 61) 23272 | -6/Factory | First assault squad dispatched 23587 | -6/Factory | Garrison activated, responded to threat 23658 | -6/Factory | Destroyed 13 combat bots 23743 | -6/Factory | Lost 3 parts (1p2n) 23752 | -6/Factory | Identified exit to Garrison 23768 | -6/Factory | Entered Garrison 23940 | -6/Garrison | Garrison Relay disabled 24023 | -6/Garrison | Triggered checkpoint 24141 | -6/Garrison | Triggered checkpoint 24196 | -6/Garrison | Triggered checkpoint 24432 | -6/Garrison | Triggered checkpoint 24551 | -6/Garrison | Triggered checkpoint 24676 | -6/Garrison | Discovered new exit (range 15) 24740 | -6/Garrison | Triggered checkpoint 24923 | -6/Garrison | Spotted B-75 Beast 25033 | -6/Garrison | Destroyed B-75 Beast 25114 | -6/Garrison | Discovered new exit (range 5) 25139 | -6/Garrison | Garrison Relay disabled 25144 | -6/Garrison | Triggered checkpoint 25225 | -6/Garrison | Expanded RIF knowledge: Program Shield 25232 | -6/Garrison | Entered Factory 25232 | -5/Factory | Evolved 2 slots: Power x1, Utility x1 25426 | -5/Factory | Discovered new exit (range 11) 25844 | -5/Factory | Discovered new exit (range 15) 26055 | -5/Factory | Lost 3 parts (1p1n1w) 26441 | -5/Factory | Lost 10 parts (4n4u2w) 26501 | -5/Factory | Core integrity fell below 50% 26754 | -5/Factory | Sucked down chute 26754 | -5/Factory | Entered Waste 26758 | -5/Waste | Spotted C-40 Crusher 26759 | -5/Waste | Spotted C-40 Crusher 26762 | -5/Waste | Spotted C-40 Crusher 26766 | -5/Waste | Spotted C-40 Crusher 26799 | -5/Waste | Spotted C-40 Crusher 26803 | -5/Waste | Found Prototype Processor 26803 | -5/Waste | Identified Spectral Analyzer 26804 | -5/Waste | Warlord forces began an assault 26823 | -5/Waste | Spotted C-40 Crusher 26824 | -5/Waste | Build established: Hacker-Mutant 26827 | -5/Waste | Allies destroyed C-40 Crusher 26833 | -5/Waste | Discovered new exit (range 11) 26838 | -5/Waste | Found Broken Enh. Force Lance 26841 | -5/Waste | Entered Factory 27080 | -5/Factory | Repaired Broken Cmb. Antigrav System 27146 | -5/Factory | Destroyed 8 combat bots 27217 | -5/Factory | Identified exit to Garrison 27218 | -5/Factory | Entered Garrison 27308 | -5/Garrison | Triggered checkpoint 27331 | -5/Garrison | Garrison Relay disabled 27367 | -5/Garrison | Triggered checkpoint 27373 | -5/Garrison | Triggered checkpoint 27390 | -5/Garrison | Destroyed B-75 Beast 27402 | -5/Garrison | Crushed by falling debris 27413 | -5/Garrison | Destroyed 13 combat bots 27504 | -5/Garrison | Garrison Relay disabled 27525 | -5/Garrison | Discovered new exit (range 6) 27530 | -5/Garrison | Triggered checkpoint 27587 | -5/Garrison | Garrison Relay disabled 27612 | -5/Garrison | Triggered checkpoint 27631 | -5/Garrison | Discovered new exit (range 11) 27704 | -5/Garrison | Discovered new exit (range 7) 27710 | -5/Garrison | Triggered checkpoint 27711 | -5/Garrison | Expanded RIF knowledge: Coupler Efficiency 27738 | -5/Garrison | Triggered checkpoint 27799 | -5/Garrison | Garrison Relay disabled 27856 | -5/Garrison | Entered Factory 27856 | -5/Factory | Accompanied by 1 ally 27901 | -5/Factory | Build established: Bothacker-Mutant 27980 | -5/Factory | Repaired Antigrav System? 28239 | -5/Factory | Repaired Adv. Cooling System 28553 | -5/Factory | Build established: Hacker-Mutant 28611 | -5/Factory | Repaired Linear Gravjet 28625 | -5/Factory | Fabricated P-70 Sage (x2) 28672 | -5/Factory | Sage 6b assimilated hostile B-60 Warrior 28802 | -5/Factory | Garrison activated, responded to threat 28823 | -5/Factory | Identified exit to Garrison 28830 | -5/Factory | Entered Garrison 28830 | -5/Garrison | Accompanied by 2 allies 28858 | -5/Garrison | Triggered checkpoint 28901 | -5/Garrison | Garrison Relay disabled 28936 | -5/Garrison | Triggered checkpoint 28936 | -5/Garrison | Triggered checkpoint 29000 | -5/Garrison | Spotted B-75 Beast 29003 | -5/Garrison | Assimilated Beast 6a with formatsys_high 29026 | -5/Garrison | Discovered new exit (range 10) 29065 | -5/Garrison | Triggered checkpoint 29066 | -5/Garrison | Discovered new exit (range 10) 29071 | -5/Garrison | Expanded RIF knowledge: Zone Cloak 29235 | -5/Garrison | Discovered new exit (range 11) 29393 | -5/Garrison | Entered Factory 29393 | -4/Factory | Accompanied by 2 allies 29393 | -4/Factory | Evolved 2 slots: Utility x2 29505 | -4/Factory | Discovered new exit (range 15) 29616 | -4/Factory | Garrison activated, responded to threat 29621 | -4/Factory | Sage 6a assimilated hostile H-77 Assassin 29643 | -4/Factory | First assault squad dispatched 29669 | -4/Factory | Found Corrupted Prototype Slashing Weapon 29669 | -4/Factory | Identified Vibroblade 29671 | -4/Factory | Found Corrupted Vibroblade 29675 | -4/Factory | Spotted B-86 Titan 29728 | -4/Factory | Lost 5 parts (2n3u) 29846 | -4/Factory | Manually triggered Chute Trap 29846 | -4/Factory | Sucked down chute 29846 | -4/Factory | Entered Waste 29850 | -4/Waste | Spotted C-40 Crusher 29857 | -4/Waste | Spotted C-40 Crusher 29860 | -4/Waste | Spotted C-40 Crusher 29861 | -4/Waste | EMP discharged 29861 | -4/Waste | System corruption reached 10% 29863 | -4/Waste | Spotted C-40 Crusher 29871 | -4/Waste | Spotted C-40 Crusher 29876 | -4/Waste | Spotted C-40 Crusher 29881 | -4/Waste | Discovered new exit (range 16) 29888 | -4/Waste | Entered Factory 29935 | -4/Factory | Central database locked down 29953 | -4/Factory | Spotted B-86 Titan 29962 | -4/Factory | Found Prototype Hackware 29973 | -4/Factory | Identified Exp. System Shield 30080 | -4/Factory | Fabricated Adv. Hacking Suite (x1) 30134 | -4/Factory | Fabricated Adv. Hacking Suite (x1) 30138 | -4/Factory | First assault squad dispatched 30164 | -4/Factory | Found Prototype Processor 30164 | -4/Factory | Identified Exp. Signal Interpreter 30227 | -4/Factory | Identified exit to Upper Caves 30227 | -4/Factory | Identified exit to Extension 30227 | -4/Factory | Identified exit to Research 30232 | -4/Factory | Core integrity fell below 50% 30249 | -4/Factory | Entered Extension 30292 | -4/Extension | Rescued a captive Derelict 30293 | -4/Extension | Rescued a captive Derelict 30341 | -4/Extension | Rescued a captive Derelict 30376 | -4/Extension | Identified exit to Cetus 30377 | -4/Extension | Build established: Wizard-Mutant 30427 | -4/Extension | Rescued a captive Derelict 30599 | -4/Extension | Rescued a captive Derelict 30607 | -4/Extension | Rescued a captive Derelict 30608 | -4/Extension | Rescued a captive Derelict 30625 | -4/Extension | Spotted B-86 Titan 30631 | -4/Extension | Rescued a captive Derelict 30712 | -4/Extension | Rescued a captive Derelict 30713 | -4/Extension | Rescued a captive Derelict 30917 | -4/Extension | Core integrity fell below 20% 30944 | -4/Extension | Lost 3 parts (1n2u) 31011 | -4/Extension | Rescued a captive Derelict 31015 | -4/Extension | Rescued a captive Derelict 31028 | -4/Extension | Rescued a captive Derelict 31084 | -4/Extension | Central database locked down 31102 | -4/Extension | Rescued a captive Derelict 31103 | -4/Extension | Rescued a captive Derelict 31126 | -4/Extension | Rescued A7 31147 | -4/Extension | Found Prototype Protection 31147 | -4/Extension | Identified Med. Regenerative Plating 31167 | -4/Extension | Destroyed A7 31170 | -4/Extension | Extracted ID and sensor layout for unrecognized location from A7's data core 31221 | -4/Extension | Discovered exit to Research (range 10) 31349 | -4/Extension | Disrupted transfer network 31399 | -4/Extension | Disrupted transfer network 31434 | -4/Extension | Entered Research 31434 | -3/Research | Accompanied by 1 ally 31434 | -3/Research | Evolved 2 slots: Propulsion x1, Utility x1 31475 | -3/Research | Build established: Wizard-Skirmisher 31774 | -3/Research | Fabricated Exp. Cesium-ion Thruster (x1) 31775 | -3/Research | Adv. System Shield fried by hacking feedback 31904 | -3/Research | Discovered new exit (range 6) 31910 | -3/Research | Entered Armory 31913 | -3/Armory | Lost 14 parts (1p6n4u3w) 32337 | -3/Armory | Found Prototype Launcher 32337 | -3/Armory | Identified Tactical Quantum Warhead 32343 | -3/Armory | Found Prototype Launcher 32343 | -3/Armory | Identified Mni. Smartbomb Launcher 32365 | -3/Armory | Build established: Scavenger-Skirmisher 32480 | -3/Armory | Spotted B-86 Titan 32511 | -3/Armory | Destroyed B-86 Titan 32554 | -3/Armory | Fabricated Exp. Targeting Computer (x1) 32679 | -3/Armory | Lost 4 parts (2n2u) 32819 | -3/Armory | Discovered new exit (range 12) 32830 | -3/Armory | System corruption reached 10% 32832 | -3/Armory | Entered Lab 32832 | -3/Lab | Discovered new exit (range 9) 32835 | -3/Lab | Entered Research 32835 | -2/Research | Evolved 2 slots: Propulsion x1, Utility x1 33045 | -2/Research | Discovered new exit (range 16) 33053 | -2/Research | Entered Access 33053 | -1/Access | Evolved 2 slots: Propulsion x1, Utility x1 33083 | -1/Access | Lost 5 parts (2n2u1w) 33156 | -1/Access | Found Launcher Loader 33200 | -1/Access | Lost 3 parts (1p2n) 33303 | -1/Access | First assault squad dispatched 33468 | -1/Access | Spotted B-99 Colossus 33500 | -1/Access | Lost 3 parts (3u) 33611 | -1/Access | Imp. System Shield fried by hacking feedback 33674 | -1/Access | Build established: Hacker-Scout 33719 | -1/Access | Discovered new exit (range 7) 33720 | -1/Access | Entered Command 33774 | -1/Command | Disengaged cave seal 33797 | -1/Command | Lost 6 parts (1p3n1u1w) 33825 | -1/Command | System corruption reached 10% 33838 | -1/Command | Spotted Striker 33840 | -1/Command | Spotted Alpha 7 33840 | -1/Command | Spotted Alpha 7 33840 | -1/Command | Spotted Striker 33840 | -1/Command | Spotted Executioner 33840 | -1/Command | Spotted Executioner 33840 | -1/Command | Spotted Executioner 33840 | -1/Command | Spotted Executioner 33840 | -1/Command | Spotted B-99 Colossus 33840 | -1/Command | Discovered new exit (range 19) 33841 | -1/Command | Spotted B-99 Colossus 33848 | -1/Command | Core integrity fell below 50% 33851 | *** | Escaped! Last Messages --------------- 33847_ Stasis field depleted. 33847_ Penetrated by Slug. 33847_ Slug penetrates Reinforced Barrier. 33847_ Knocked back. 33849_ The Access Shell folds into the floor. 33849_ P-80 Master resets Executioner, system corruption cleaned. 33849_ Triggered Stasis Trap. 33849_ A bubble of rippling energy engulfs the area. 33849_ Field strength at 95. 33849_ Penetrated by Slug. 33849_ Slug penetrates Wall. 33849_ Field strength at 74. 33850_ Knocked back. 33850_ Slug penetrates B-99 Colossus. 33850_ Penetrated by Slug. 33850_ Slug penetrates Wall. 33850_ Penetrated by Slug. 33850_ Slug penetrates Wall. 33850_ Penetrated by Slug. 33850_ Slug penetrates Wall. Map ----- +----------------------------------------------------+ | ?????????????????????????????????????????????????? | | ?????????????????????????????????????????????????? | | ?????????????????????????????????????????????????? | | ?????????????????????????????????????????????????? | | ?????????????????????????????????????????????????? | | ?????????????????????????????????????????????????? | | ?????????????????????????????????????????????????? | | ?????????????????????????s???????????????????????? | | ?????????????????????????????????????????????????? | | ?????????????????????????????????????????????????? | | ?##+###??????????????????????????????????????????? | | ?# ??????????????????????????????????????????? | | ?# #?????????????????????????????????????????? | | ?# #?????????????????????????????????????????? | | + #?????????????????????????????w???????????? | | # #?????????????????????????????????????????? | | + #?????????????????????????????????????????? | | # #?????????????????????????????????????????? | | # #?????????????????????????????????????????? | | # = #??????????##############?????????????????? | | # #??????????# #?????????????????? | | # #??######### #?????????????????? | | # #### # # # # ^ #?????????????????? | | ##" ## 7 E #?????????????????? | | E % #?????????????????? | | K BB "@ #?????????????????? | | p E BBK ^ "" #?????????????????? | | p %p% %^BB #?????????????????? | | gg 7 EBB % #?????????????????? | | ; #;;%; # ;#????????????????? | | "###;""# ##????????????????? | | "#?########## #?????????????????? | | *##??????????#######;######?????????????????? | | #?????????????????###??????????????????????? | | ####???????????????????????????????????????? | | "" #???????????????????????????????????????? | | """#???????????????????????????????????????? | | T"#???????????????????????????????????????? | | ""#???????????????????????????????????????? | | "" #???????????????????????????????????????? | | ####???????????????????????????????????????? | | #??????????????????????????????????????????? | | #??????????????????????????????????????????? | | ## #??????????????????????????????????????????? | | ## #??????????????????????????????????????????? | | ## #??????????????????????????????????????????? | | ## #??????????????????????????????????????????? | | ## #??????????????????????????????????????????? | | ## #??????????????????????????????????????????? | | ## #??????????????????????????????????????????? | +----------------------------------------------------+ Best States ------------- Heat Dissipation 100 Coolant Potential 120 Energy Generation 45 Energy Capacity 1800 Matter Stores 368 Matter Capacity 500 Sight Range 24 Terrain Scan Range 20 Terrain Scan Density 210 Jamming Range 12 Armor Coverage 900 Weapon Cycling 20 Evasion (%) 70 Targeting Accuracy 12 Target Analysis 8 Recoil Reduction 4 Salvage Targeting 2 Stasis Canceling 2 Offensive Hacking 64 Defensive Hacking 28 Relay Coupler Types 112 Relay Coupler Value 3 Item Schematics ----------------- Biometal Leg | -5/Factory | Hacked Exp. Targeting Computer | -5/Factory | Hacked Imp. Core Shielding | -5/Factory | Extracted Coil Gun | -5/Factory | Extracted Energy Filter | -5/Factory | Extracted Hvy. Assault Cannon | -5/Factory | Hacked Hardcell Cannon | -4/Factory | Extracted Weight Redist. System | -4/Factory | Extracted Imp. Signal Interpreter | -4/Factory | Extracted Imp. Datajack | -4/Factory | Extracted Imp. Force Booster | -4/Factory | Extracted Imp. Heat Shielding | -4/Factory | Extracted Antimatter Reactor | -4/Factory | Extracted Adv. ECM Suite | -4/Factory | Extracted Hcp. Storage Unit | -4/Factory | Extracted Lgt. Antimatter Reactor | -4/Factory | Extracted Adv. Thermal Generator | -4/Factory | Extracted Gravity Neutralizing Apparatus | -4/Factory | Extracted Remote Force Field | -4/Factory | Extracted Adv. Cryofiber Web | -4/Factory | Extracted Adv. Hacking Suite | -4/Factory | Hacked Exp. Cesium-ion Thruster | -4/Extension | Hacked Robot Schematics ------------------ P-70 Sage | -5/Factory | Hacked Fabricated ------------ P-70 Sage | x2 | -5/Factory Adv. Hacking Suite | x1 | -4/Factory Adv. Hacking Suite | x1 | -4/Factory Exp. Cesium-ion Thruster | x1 | -3/Research Exp. Targeting Computer | x1 | -3/Armory Alien Tech Used ----------------- None Achievements -------------- None Challenges ------------ None Game ------ Seed CannonManeuveringChainsword Manual? 0 Play Time 06:28:58 Cumulative 216.5 hours Start 2021.07.16 @ 20:30:28 End 2021.07.18 @ 14:22:13 Sessions 3 Manual Loads 0 Difficulty Rogue Special Mode None Game No. 74 Rogue 59 Adventurer 15 Explorer 0 Win Type 0 Total 9 Types 4/0/2/1/2/0/0/0/0 Lore% 83 Gallery% 83 Achievement% 69 Wizard Run 0 Options --------- ASCII 0 Keyboard 0 Movement Numpad Keybinds 0 Fullscreen 1 Font 18/SmallcapsGlow Map View 76x50 Tactical HUD 1 Map Filters NONE Filters NONE Steam 1 RUN: 38d5c24c-0489-4206-bc0d-5ee2fdb65a79